{"text_format":"3","workbook":"xlsx","n_sheets":32,"sheets":["1 (заг інф)","2 (лов)","3 (утвор НР)","4 (діяль НР)","5 (члени НР)","6 (інформаційний)","7 (оцін_фін коеф)","8 (частка_фін коеф)","9 (оцін_ччп_дивід)","10 (частка_ччп_дивід)","11 (оцін_держ політ)","12 (частка_держ політ)","13 (інформаційний)","14 (діяль НР_бали)","15 (оцін_корп упр)","16 (частка_корп упр)","17 (оцін_інтегр показ)","18 (загаль оцінка)","19 (керівник)","20 (виконавч орган)","21 (спец обов)","22 (страт пл)","23 (розподіл)","24 (активи)","25 (фін рез)","26 (штат)","27 (фін пл)","28 (кр заб)","29 (для ФДМУ_приватиз)","30 (передач)","31 (упоряд)","32 (оцінка)"],"not_rendered":{"external_links":1,"defined_names":1},"read":"whole","date_system":"1900"}

{"sheet":"1 (заг інф)","index":0,"n_rows":33,"n_cols":31,"rows_kept":33,"merged":[[1,14,1,18],[3,0,3,18],[4,0,4,18],[14,0,14,18],[17,19,17,30],[21,19,21,30],[23,19,23,30],[29,19,29,30],[31,0,31,18],[32,0,32,18]]}
[{"$nulls":14},"Додаток 1  ",{"$nulls":15},"Продовження додатка 1"]
[{"$nulls":14},"до Методичних рекомендацій щодо здійснення контролю за виконанням функцій з управління об’єктами державної власності, узагальнення інформації про діяльність суб’єктів господарювання державного сектору економіки та наглядових рад суб’єктів господарювання державного сектору економіки та застосування критеріїв (оцінки) ефективності управління об’єктами державної власності "]
[]
["ЗАГАЛЬНА ІНФОРМАЦІЯ"]
["про суб'єктів господарювання державного сектору економіки, функції з управління якими або корпоративними правами держави у статутному капіталі яких виконує ____________, за ____________ (період, рік)"]
[]
["№ ","Повне найменування суб'єкта господарювання державного сектору економіки (далі – суб'єкт господарювання) 1","Ідентифікаційний код","Галузь (код) 2","Галузь (назва) 3","Основний код виду економічної діяльності (КВЕД)","Код за КАТОТТГ 4 ","Код організаційно-правової форми (Код ОПФ)  5","Місцезнаходження (адреса) суб'єкта господарювання","Розмір статутного капіталу, гривень","Розмір державної частки (щодо господарських товариств), відсотків","Категорія суб'єкта господарювання 6","Суб'єкти господарювання, що становлять суспільний інтерес 7,\n(Так/Ні)","Суб'єкти господарювання, що мають стратегічне значення для економіки і безпеки держави 8,\n(Так/Ні)","Суб'єкти господарювання, на яких покладено виконання спеціальних обов’язків 9, (Так/Ні) ","Інформація про спеціальні обов'язки 9 \n","Природні монополісти 10,\n(Так/Ні)","Суб'єкти господарювання, плановий розрахунковий розмір чистого прибутку яких у звітному році перевищує 50 млн. гривень (Так/Ні)","Підстави залишення суб'єктів господарювання в державній власності 11","Працюючі (П) / непрацюючі (НП) - протягом звітного періоду не провадили фінансово-господарську діяльність/ інформація відсутня (ІВ)","Перебувають у процедурі банкрутства 12","Перебувають у стані реорганізації за рішенням органу 13","Перебувають у стані ліквідації за рішенням органу 13","Внесено до  Реєстру неприбуткових установ та організацій,\n(Так/Ні)","Має ліцензії  на надання фінансових послуг,\n(Так/Ні)","Припинили свою діяльність внаслідок передачі єдиних майнових комплексів в оренду, \n(Так/Ні)","Стандарти, за якими складається фінансова звітність: за національними положеннями (стандартами) бухгалтерського обліку - НП(С)БО / за міжнародними стандартами фінансової звітності - МСФЗ\t","Примітка 14","Адреса електронної пошти","Телефон","Веб-сторінка"]
[1,{"$f":"A8+1","v":2},{"$f":"B8+1","v":3},4,5,6,{"$f":"F8+1","v":7},8,{"$f":"H8+1","v":9},10,11,12,13,14,15,16,17,18,19,20,21,22,23,24,25,26,27,28,29,30,31]
[null,"Усього щодо суб'єкта управління (1 + 2), у тому числі за групами суб'єктів господарювання:","x","x","x","x","x","x","x",null,"x","x","загальна кількість \"Так\"","загальна кількість \"Так\"","загальна кількість \"Так\"","загальна кількість \"див. додаток 21\"","загальна кількість \"Так\"","загальна кількість \"Так\"","x","x","x","x","x","загальна кількість \"Так\"","загальна кількість \"Так\"","загальна кількість \"Так\"","x","x","x","x","x"]
[1,"державні унітарні підприємства – усього, у тому числі щодо окремих підприємств:","x","x","x","x","x","x","x",null,"x","x","загальна кількість \"Так\"","загальна кількість \"Так\"","загальна кількість \"Так\"","загальна кількість \"див. додаток 21\"","загальна кількість \"Так\"","загальна кількість \"Так\"","x","x","x","x","x","загальна кількість \"Так\"","загальна кількість \"Так\"","загальна кількість \"Так\"","x","x","x","x","x"]
["1.1."]
[2,"господарські товариства, у статутному капіталі яких більше 50 відсотків акцій (часток) належать державі – усього, у тому числі щодо окремих підприємств:","x","x","x","x","x","x","x",null,"x","x","загальна кількість \"Так\"","загальна кількість \"Так\"","загальна кількість \"Так\"","загальна кількість \"див. додаток 21\"","загальна кількість \"Так\"","загальна кількість \"Так\"","x","x","x","x","x","загальна кількість \"Так\"","загальна кількість \"Так\"","загальна кількість \"Так\"","x","x","x","x","x"]
["2.1."]
[]
["1 Наводиться повний перелік суб'єктів господарювання, згідно з Єдиним реєстром об'єктів державної власності Фонду державного майна (у разі якщо суб'єкт господарювання не звітує суб'єкту управління, у графі 20 вказується \"інформація відсутня\", а в графі 28 - причини відсутності інформації).",{"$nulls":18},"6 Зазначається відповідно до Закону України \"Про бухгалтерський облік та фінансову звітність в Україні\", зі змінами: великі підприємства (ВП), середні підприємства (СП), малі підприємства (МП), мікро-підприємства (МкП)."]
["2 Зазначте код галузі, діяльність у якій забезпечує найбільшу частку доходів суб'єкта господарювання протягом останнього звітного року. Перелік галузей (код/назва галузі/опис):",{"$nulls":18},"7 Визначається відповідно до Закону України \"Про бухгалтерський облік та фінансову звітність в Україні\", зі змінами."]
["    01 / Паливно-енергетичний сектор / Електроенергія, газ, нафта, вугілля, торф, ядерне паливо, енергетичне обладнання;",{"$nulls":18},"8 Визначається відповідно до постанови Кабінету Міністрів України від 04.03.2015 № 83 \"Про затвердження переліку об'єктів державної власності, що мають стратегічне значення для економіки і безпеки держави\"."]
["    02 / Цифрові технології та захист інформації / Електронна ідентифікація, довірчі послуги, е-урядування, телекомунікації, кіберзахист державних інформаційних ресурсів;",{"$nulls":18},"9 Якщо у графі 15 зазначено \"Так\", заповнюється додаток 21 до Методичних рекомендацій щодо здійснення контролю за виконанням функцій з управління об’єктами державної власності, узагальнення інформації про діяльність суб’єктів господарювання державного сектору економіки та наглядових рад суб’єктів господарювання державного сектору економіки та застосування критеріїв (оцінки) ефективності управління об’єктами державної власності, а у графі 16 зазначається \"див. додаток 21\". "]
["    03 / Харчова промисловість та агропромисловий комплекс / Виробництво харчових продуктів, сільське господарство, зрошення, зберігання, ветеринарія;",{"$nulls":18},"10 Визначається відповідно до Зведеного переліку суб’єктів природних монополій Антимонопольного комітету України."]
["    04 / Охорона здоров’я / Надання медичних послуг, фармацевтика, управління громадським здоров’ям, eHealth;",{"$nulls":18},"11 Обирається одне із наступних значень відповідно до категоризації суб'єктів господарювання згідно з пунктом 21 Політики державної власності, затвердженої постановою Кабінету Міністрів України від 29.11.2024 № 1369 \"Деякі питання Політики державної власності\":"]
["    05 / Фінансовий сектор (крім банків) / Страхування, лізинг, кредитні спілки, інші небанківські фінансові послуги;",{"$nulls":18},"   підприємства, товариства з корпоративними правами держави, які не підлягають приватизації, згідно переліку, що затверджується Верховною Радою України відповідно до вимог Закону України \"Про приватизацію державного і комунального майна\", зі змінами (НЕП);"]
["    06 / Транспорт і пошта / Пасажирські та вантажні перевезення всіма видами транспорту, поштові та кур’єрські послуги;",{"$nulls":18},"   підприємства, товариства з корпоративними правами держави, необхідні для забезпечення обороноздатності держави, які залишаються в державній власності на період дії правового режиму воєнного стану, приватизація яких може бути проведена після його припинення або скасування (ВС);"]
["    07 / Комунальне господарство / Теплопостачання, водопостачання, водовідведення, поводження з відходами, інші ЖКП;",{"$nulls":18},"   підприємства, товариства з корпоративними правами держави, які повинні бути приватизовані чи ліквідовані або щодо яких застосовуються обидва таких способи (ПЛ);"]
["    08 / Промисловість (крім харчової) / Хімічна, металургійна, оборонна, авіаційна, суднобудівна, космічна та інші промислові галузі;",{"$nulls":18},"   підприємства, товариства з корпоративними правами держави, які підлягають реорганізації та/або щодо яких вживаються інші заходи з метою відокремлення видів діяльності, які підпадають під причини залишення підприємства, корпоративних прав держави в державній власності, від інших видів діяльності (Р)."]
["    09 / Інформаційний сектор / ЗМІ, телебачення, радіомовлення, видавнича діяльність. Не включає ІТ та кібербезпеку;",{"$nulls":18},"12 РМ - розпорядження майном, С - санація, Л - ліквідація."]
["    10 / Сфера послуг (крім фінансових) / Комерційні, побутові, туристичні, орендні, консалтингові та культурні послуги;",{"$nulls":18},"13 Дата прийняття рішення про реорганізацію (ліквідацію), номер нормативного документа."]
["    11 / Освіта, наука і дослідження / Навчальні заклади, науково-дослідні інститути, прикладні дослідження;",{"$nulls":18},"14 Для суб'єктів господарювання:"]
["    12 / Будівництво та інфраструктура / Капітальне будівництво, ремонт, утримання об’єктів інфраструктури, експлуатація будівель;",{"$nulls":18},"   утворених у звітному періоді - зазначаються дата та номер розпорядчого документа;"]
["    13 / Охорона довкілля та природні ресурси / Лісове та водне господарство, екологічний моніторинг, управління природно-заповідним фондом;",{"$nulls":18},"   переданих до іншого суб'єкта управління - зазначаються дата та номер розпорядчого документа;"]
["    14 / Інша галузь / Якщо жодна з галузей вище не підходить, обирається цей код, а назва галузі зазначається у графі 5.",{"$nulls":18},"   місцезнаходження яких є території активних бойових дій або тимчасово окуповані Російською Федерацією території України, включені до переліку територій, на яких ведуться (велися) бойові дії або тимчасово окупованих Російською Федерацією, затвердженому Мінрозвитку, для яких не визначена дата завершення бойових дій або тимчасової окупації - зазначається «ТАБД» або «ТОТ» відповідно;"]
["3 Зазначається назва галузі, якщо у графі 4 обрано код 14.",{"$nulls":18},"   що входять до складу господарського об'єднання - зазначається, що суб'єкт господарювання входить до складу господарського об'єднання (найменування та код згідно з ЄДРПОУ)."]
["4 Для резидентів України зазначається код території територіальної громади, визначений відповідно до Кодифікатора адміністративно-територіальних одиниць та територій територіальних громад, затвердженого наказом Мінрегіону від 26.11.2020 № 290 \"Про затвердження Кодифікатора адміністративно-територіальних одиниць та територій територіальних громад\". Для нерезидентів України графа 7 не заповнюється.",{"$nulls":23},"_______________________________________________________________"]
["5 Зазначається код організаційно-правової форми суб'єкта господарювання відповідно до Словника організаційно-правових форм юридичних осіб, затвердженого наказом Мін'юсту від 13.08.2025 № 2203/5, посилання: https://minjust.gov.ua/files/general/2025/08/28/20250828123845-94.pdf"]

{"sheet":"2 (лов)","index":1,"n_rows":24,"n_cols":25,"rows_kept":24,"merged":[[1,9,1,12],[3,0,3,12],[4,0,4,12],[6,0,8,0],[6,1,8,1],[6,2,8,2],[6,3,8,3],[6,4,8,4],[6,5,8,5],[6,6,8,6],[6,7,8,7],[6,8,8,8],[6,9,6,21],[6,22,8,22],[6,23,8,23],[6,24,8,24],[7,9,7,12],[7,13,7,15],[7,16,7,18],[7,19,7,21],[16,13,16,24],[17,13,17,24],[18,13,18,24],[19,13,19,24],[20,13,20,24],[21,13,21,24],[23,13,23,24]]}
[{"$nulls":9},"Додаток 2  ",{"$nulls":14},"Продовження додатка 2"]
[{"$nulls":9},"до Методичних рекомендацій щодо здійснення контролю за виконанням функцій з управління об’єктами державної власності, узагальнення інформації про діяльність суб’єктів господарювання державного сектору економіки та наглядових рад суб’єктів господарювання державного сектору економіки та застосування критеріїв (оцінки) ефективності управління об’єктами державної власності "]
[]
["УЗАГАЛЬНЕНА ІНФОРМАЦІЯ"]
["про підсумкові результати оцінки досягнення поставлених цілей діяльності, визначених у листах очікувань власника \nсуб’єктів господарювання державного сектору економіки, функції з управління якими або корпоративними правами держави у статутному капіталі яких виконує _________________, за _________ (рік)"]
[]
["№","Повне найменування суб’єкта господарювання державного сектору економіки (далі – суб'єкт господарювання)","Ідентифікаційний код","Затверджено лист очікувань власника суб'єкта господарювання за звітний рік, (Так/Ні)","Дата затвердження листа очікувань власника суб'єкта господарювання","Посилання на веб-адресу, за якою оприлюднено лист очікувань власника суб'єкта господарювання 1","Затверджено щорічний звіт про досягнення цілей суб’єктом господарювання, визначених у листі очікувань власника суб'єкта господарювання,\n(Так/Ні)","Дата затвердження щорічного звіту про досягнення цілей суб’єктом господарювання ","Посилання на веб-адресу, за якою оприлюднено щорічний звіт про досягнення цілей суб’єктом господарювання  2","                               Показники, затверджені у листі очікувань власника суб'єкта господарювання, та оцінка їх досягнення",{"$nulls":12},"Оцінка 5 (ефективна, задовільна, незадовільна)\n","Інформація про врахування результатів оцінки суб’єктом управління під час встановлення коротко- та середньострокових цілей суб’єкта господарювання 6","Інформація про прийняття суб’єктом управління рішень щодо оцінювання діяльності органів управління 6"]
[{"$nulls":9},"фінансові",{"$nulls":3},"операційні",null,null,"нефінансові",null,null,"разом"]
[{"$nulls":9},"кількість показників 3","кількість отриманих балів 4","у тому числі, за виплату частини чистого прибутку (дивідендів) на користь держави,\n(1 бал, 0 балів) 4","відсоток виконання\n(графа 11 x 100 / графа 10)","кількість показників 3","кількість отриманих балів 4","відсоток виконання\n(графа 15 x 100 / графа 14)","кількість показників 3","кількість отриманих балів 4","відсоток виконання\n(графа 18 x 100 / графа 17)","кількість показників 3\n(графа 10 + графа 14 + графа 17)","кількість отриманих балів 4\n(графа 11 + графа 15 + графа 18)","відсоток виконання\n(графа 21 x 100 / графа 20)"]
[1,2,3,4,5,6,7,8,9,10,11,12,13,14,15,16,17,18,19,20,21,22,23,24,25]
[null,"Усього щодо суб'єкта управління (1 + 2), у тому числі за групами суб'єктів господарювання:","х","загальна кількість \"Так\"","х","х","загальна кількість \"Так\"","х","х",{"$nulls":3},{"$f":"K11*100/J11","v":{"$error":"#DIV/0!"}},null,null,{"$f":"O11*100/N11","v":{"$error":"#DIV/0!"}},null,null,{"$f":"R11*100/Q11","v":{"$error":"#DIV/0!"}},{"$f":"J11+N11+Q11","v":0},{"$f":"K11+O11+R11","v":0},{"$f":"U11*100/T11","v":{"$error":"#DIV/0!"}},"х","х","х"]
[1,"державні унітарні підприємства – усього, у тому числі щодо окремих підприємств:","х","загальна кількість \"Так\"","х","х","загальна кількість \"Так\"","х","х",{"$nulls":3},{"$f":"K12*100/J12","v":{"$error":"#DIV/0!"}},null,null,{"$f":"O12*100/N12","v":{"$error":"#DIV/0!"}},null,null,{"$error":"#DIV/0!"},{"$f":"J12+N12+Q12","v":0},0,{"$f":"U12*100/T12","v":{"$error":"#DIV/0!"}},"х","х","х"]
["1.1.",{"$nulls":11},{"$f":"K13*100/J13","v":{"$error":"#DIV/0!"}},null,null,{"$f":"O13*100/N13","v":{"$error":"#DIV/0!"}},null,null,{"$f":"R13*100/Q13","v":{"$error":"#DIV/0!"}},0,0,{"$error":"#DIV/0!"}]
[2,"господарські товариства, у статутному капіталі яких більше 50 відсотків акцій (часток) належать державі – усього, у тому числі щодо окремих підприємств:","х","загальна кількість \"Так\"","х","х","загальна кількість \"Так\"","х","х",{"$nulls":3},{"$f":"K14*100/J14","v":{"$error":"#DIV/0!"}},null,null,{"$f":"O14*100/N14","v":{"$error":"#DIV/0!"}},null,null,{"$f":"R14*100/Q14","v":{"$error":"#DIV/0!"}},0,0,{"$error":"#DIV/0!"},"х","х","х"]
["2.1. ",{"$nulls":11},{"$f":"K15*100/J15","v":{"$error":"#DIV/0!"}},null,null,{"$error":"#DIV/0!"},null,null,{"$error":"#DIV/0!"},{"$f":"J15+N15+Q15","v":0},{"$f":"K15+O15+R15","v":0},{"$f":"U15*100/T15","v":{"$error":"#DIV/0!"}}]
[]
[{"$nulls":13},"1 У разі неоприлюднення листа очікувань власника суб'єкта господарювання зазначається причина неоприлюднення. Якщо причиною неоприлюднення є незатвердження листа очікувань власника суб'єкта господарювання, зазначається причина незатвердження."]
[{"$nulls":13},"2 У разі неоприлюднення щорічного звіту про досягнення цілей суб’єктом господарювання, визначених у листі очікувань власника суб'єкта господарювання, зазначається причина неоприлюднення. Якщо причиною неоприлюднення є неподання звіту суб'єктом господарювання або непроведення/незатвердження оцінки суб'єктом управління (загальними зборами), зазначається причина неподання звіту або непроведення/незатвердження оцінки."]
[{"$nulls":13},"3 Кількість показників, затверджених у листі очікувань власника суб'єкта господарювання, заповнюється у відповідності до листа очікувань власника суб'єкта господарювання, і зазначається за відповідними групами показників. Якщо показники у відповідній групі не встановлено, у відповідній графі зазначається цифра \"0\", яка автоматично відображатиметься як \"не встановлено\". Ручне введення тексту заборонено для забезпечення автоматизованого розрахунку даних."]
[{"$nulls":13},"4 Кількість показників, затверджених у листі очікувань власника суб'єкта господарювання, які за результатами оцінки отримали по одному балу за кожен показник, заповнюється у відповідності до щорічної оцінки досягнення суб’єктом господарювання поставлених цілей діяльності, визначених у листі очікувань власника суб'єкта господарювання, і зазначається за відповідними групами показників. Якщо бали у відповідній групі не нараховано, у відповідній графі заповнюється \"0\"."]
[{"$nulls":13},"5 Заповнюється у відповідності до щорічної оцінки досягнення суб'єктом господарювання, поставлених цілей діяльності, визначених у листі очікувань власника суб'єкта господарювання."]
[{"$nulls":13},"6 Надається стислий опис."]
[]
[{"$nulls":13},"_______________________________________________________________"]

{"sheet":"3 (утвор НР)","index":2,"n_rows":25,"n_cols":12,"rows_kept":25,"merged":[[1,9,1,11],[3,0,3,11],[4,0,4,11],[6,0,7,0],[6,1,7,1],[6,2,7,2],[6,3,7,3],[6,4,7,4],[6,5,6,9],[6,10,7,10],[6,11,7,11],[15,0,15,11],[16,0,16,11],[17,0,17,11],[18,0,18,11],[19,0,19,11],[20,0,20,11],[21,0,21,11],[22,0,22,11],[23,0,23,11]]}
["          ",{"$nulls":8},"Додаток 3"]
[{"$nulls":9},"до Методичних рекомендацій щодо здійснення контролю за виконанням функцій з управління об’єктами державної власності, узагальнення інформації про діяльність суб’єктів господарювання державного сектору економіки та наглядових рад суб’єктів господарювання державного сектору економіки та застосування критеріїв (оцінки) ефективності управління об’єктами державної власності "]
[]
["ІНФОРМАЦІЯ ПРО ВІДПОВІДНІСТЬ ВИМОГАМ ЩОДО УТВОРЕННЯ НАГЛЯДОВИХ РАД *"]
["суб’єктів господарювання державного сектору економіки, функції з управління якими або корпоративними правами держави у статутному капіталі яких виконує _________________, за _________ (період, рік)"]
[]
["№","Повне найменування суб’єкта господарювання державного сектору економіки (далі – суб'єкт господарювання)","Ідентифікаційний код","Чи є обов’язковим утворення наглядової ради 1 \n(Так/Ні) ","Підстави для обов’язкового утворення наглядової ради 2","У разі необов’язковості утворення наглядової ради – зазначити підстави необов’язковості у відповідності до пункту 103 Політики державної власності,  затвердженої постановою Кабінету Міністрів України від 29.11.2024 № 1369 \"Деякі питання Політики державної власності\" (далі - Політика державної власності) 3",{"$nulls":4},"Чи було у звітному періоді передбачено статутом суб’єкта господарювання наглядову раду як орган управління (Так/Ні) 4","У разі обов'язковості утворення наглядової ради, якщо наглядову раду у звітному періоді не було передбачено статутом суб’єкта господарювання, зазначити причини 5"]
[{"$nulls":5},"суб'єкт господарювання є некомерційним (Так/Ні)","статутом суб'єкта господарювання передбачено, що він не має на меті отримання прибутку (Так/Ні)","суб’єкт господарювання не провадить основну діяльність, (Так/Ні)","суб’єкт господарювання  перебуває на територіях, на яких ведуться бойові дії або тимчасово окупованих Російською Федерацією, (Так/Ні)","щодо суб’єкта господарювання прийнято рішення про ліквідацію чи приватизацію або суб’єкт господарювання за результатами здійснення розподілу, передбаченого пунктом 20 Політики державної власності, віднесено до категорії тих, що мають бути приватизовані чи ліквідовані (Так/Ні)"]
[1,{"$f":"A9+1","v":2},3,4,5,6,7,8,9,10,11,12]
[null,"Усього щодо суб'єкта управління (1 + 2), у тому числі за групами суб'єктів господарювання:","х","загальна кількість \"Так\"","х","загальна кількість \"Так\"","загальна кількість \"Так\"","загальна кількість \"Так\"","загальна кількість \"Так\"","загальна кількість \"Так\"","загальна кількість \"Так\"","х"]
[1,"державні унітарні підприємства – усього, у тому числі щодо окремих підприємств:","х","загальна кількість \"Так\"","х","загальна кількість \"Так\"","загальна кількість \"Так\"","загальна кількість \"Так\"","загальна кількість \"Так\"","загальна кількість \"Так\"","загальна кількість \"Так\"","х"]
["1.1."]
[2,"господарські товариства, у статутному капіталі яких більше 50 відсотків акцій (часток) належать державі – усього, у тому числі щодо окремих підприємств:","х","загальна кількість \"Так\"","х","загальна кількість \"Так\"","загальна кількість \"Так\"","загальна кількість \"Так\"","загальна кількість \"Так\"","загальна кількість \"Так\"","загальна кількість \"Так\"","х"]
["2.1. "]
[]
["* Інформація зазначається станом на останній день звітного кварталу (31 грудня звітного року)."]
["1 У графі 4 зазначається, чи підпадав суб’єкт господарювання у звітному періоді під критерії щодо обов’язковості  утворення наглядової ради, визначені Політикою державної власності, або під вимогу щодо її створення, передбачену законом."]
["2 У разі обов’язковості утворення наглядової ради у графі 5 зазначається наступне:"]
["   якщо підставою утворення наглядової ради є Закон України: назва, реквізити та пункт(и) відповідного закону;"]
["   якщо підставою утворення наглядової ради є Політика державної власності: \"Політика державної власності\";"]
["   якщо підставами є як Політика державної власності, так і Закон України: 1) назва, реквізити та пункт(и) відповідного закону; 2) \"Політика державної власності\"."]
["3 Графи 6 - 10 заповнюються лише для підприємств, які є великими у відповідності до Закону України \"Про бухгалтерський облік та фінансову звітність в Україні\", зі змінами. "]
["4 У разі відповіді \"Так\" заповнюється додаток 4."]
["5 Графа 12 заповнюється у разі відповіді \"Так\" у графі 4 та відповіді \"Ні\" у графі 11."]
[{"$nulls":5},"_______________________________________________________________"]

{"sheet":"4 (діяль НР)","index":3,"n_rows":34,"n_cols":36,"rows_kept":34,"merged":[[1,16,1,21],[3,0,3,21],[4,0,4,21],[6,0,8,0],[6,1,8,1],[6,2,8,2],[6,3,8,3],[6,4,6,6],[6,7,8,7],[6,8,8,8],[6,9,6,10],[6,11,6,20],[6,21,8,21],[6,22,8,22],[6,23,6,26],[6,27,6,35],[7,4,8,4],[7,5,8,5],[7,6,8,6],[7,9,8,9],[7,10,8,10],[7,11,7,13],[7,14,7,16],[7,17,7,20],[7,23,7,25],[7,27,8,27],[7,28,8,28],[7,29,8,29],[7,30,8,30],[7,31,8,31],[7,32,8,32],[7,33,7,35],[28,22,28,35],[33,22,33,35]]}
[{"$nulls":16},"Додаток 4",{"$nulls":18},"Продовження додатка 4"]
[{"$nulls":16},"до Методичних рекомендацій щодо здійснення контролю за виконанням функцій з управління об’єктами державної власності, узагальнення інформації про діяльність суб’єктів господарювання державного сектору економіки та наглядових рад суб’єктів господарювання державного сектору економіки та застосування критеріїв (оцінки) ефективності управління об’єктами державної власності  "]
[]
["ІНФОРМАЦІЯ ПРО ДІЯЛЬНІСТЬ НАГЛЯДОВИХ РАД *"]
["суб’єктів господарювання державного сектору економіки, функції з управління якими або корпоративними правами держави у статутному капіталі яких виконує _________________, за _________ (період, рік)"]
[]
["№","Повне найменування суб’єкта господарювання державного сектору економіки (далі – суб'єкт господарювання)","Ідентифікаційний код","Кількісний склад наглядової ради суб’єкта господарювання, визначений статутом та/або положенням про наглядову раду, осіб","Фактичний склад наглядової ради суб’єкта господарювання, осіб 1",null,null,"Наглядова рада має більшість незалежних членів 2 (Так/Ні) ","Склад наглядової ради є правомочним 3 (Так/Ні)","У разі неукомплектованості наглядової ради суб’єкта господарювання 4",null,"Комітети наглядової ради ",{"$nulls":9},"Загальна сума винагороди, виплачена за звітний період всім членам наглядової ради суб’єкта господарювання, повноваження яких були дійсними у звітному періоді\n(тис. гривень) 11","Кількість членів наглядової ради суб’єкта господарювання, які працювали у звітному періоді на безоплатній основі (громадських засадах), осіб\n\n","Оцінка діяльності наглядової ради суб’єкта господарювання 12",{"$nulls":3},"Результати оцінки діяльності наглядової ради суб’єкта господарювання 14"]
[{"$nulls":4},"Всього","Незалежні члени","Представники держави",null,null,"Причини неукомплектованості 5","Заходи, спрямовані на укомплектування наглядової ради 6","Комітет з питань призначень та винагород",null,null,"Комітет з питань аудиту",null,null,"Інші комітети 7",{"$nulls":5},"Зовнішня оцінка наглядової ради суб’єкта господарювання",null,null,"Самооцінка ","Елемент 1.\n Склад, структура та діяльність (ефективність організації роботи) наглядової ради суб’єкта господарювання як колегіального органу","Елемент 2.\n Відповідність членів наглядової ради суб’єкта господарювання вимогам до посади, визначеним законодавством та внутрішніми документами компанії, належне виконання обов’язків членів наглядової ради та ефективність кожного члена наглядової ради","Елемент 3. \nОцінка діяльності комітетів наглядової ради суб’єкта господарювання","Елемент 4. \nОцінка діяльності наглядової ради суб’єкта господарювання, виконання покладених на наглядову раду обов’язків та досягнення цілей","Загальна бальна оцінка, присвоєна за результатами оцінювання діяльності наглядової ради суб’єкта господарювання","Факт непогодження суб’єктом управління об'єктами державної власності із бальною оцінкою (Погоджено/Не погоджено)","Звіт про роботу наглядової ради суб’єкта господарювання"]
[{"$nulls":11},"Статус утворення комітету (Утворено/Не утворено)","Кількісний склад комітету, осіб 8","Фактична кількість членів комітету, осіб 10","Статус утворення комітету (Утворено/Не утворено)","Кількісний склад комітету, осіб 8","Фактична кількість членів комітету, осіб 10","Статус утворення комітету (Утворено/Не утворено)","Назви комітету - перелік 9","Кількісний склад комітету, осіб 8","Фактична кількість членів комітетів, осіб 10",null,null,{"$f":"\"Проводилася (Так/Ні)\"","v":"Проводилася (Так/Ні)"},"Чи залучався незалежний консультант (Так/Ні)","Найменування незалежного консультанта 13",{"$f":"\"Проводилася (Так/Ні)\"","v":"Проводилася (Так/Ні)"},{"$nulls":6},"Затвердження звіту \n(Так/Ні) ","Рішення за результатами розгляду звіту (задовільна / незадовільна)","Посилання на звіт про роботу наглядової ради суб’єкта господарювання 15"]
[1,2,{"$f":"B10+1","v":3},4,5,6,7,8,9,10,11,12,13,14,15,16,17,18,19,20,21,22,23,24,25,26,27,28,29,30,31,32,33,34,35,36]
[null,"Усього щодо суб'єкта управління (1 + 2), у тому числі за групами суб'єктів господарювання:","х",null,{"$f":"F11+G11","v":0},null,null,"загальна кількість \"Так\"","загальна кількість \"Так\"","х","х","загальна кількість \"Утворено\"",null,null,"загальна кількість \"Утворено\"",null,null,"загальна кількість \"Утворено\"","х",{"$nulls":4},"загальна кількість \"Так\"","загальна кількість \"Так\"","х","загальна кількість \"Так\"","х","х","х","х","х","х","загальна кількість \"Так\"","х","х"]
[1,"державні унітарні підприємства – усього, у тому числі щодо окремих підприємств:","х",null,{"$f":"F12+G12","v":0},null,null,"загальна кількість \"Так\"","загальна кількість \"Так\"","х","х","загальна кількість \"Утворено\"",null,null,"загальна кількість \"Утворено\"",null,null,"загальна кількість \"Утворено\"","х",{"$nulls":4},"загальна кількість \"Так\"","загальна кількість \"Так\"","х","загальна кількість \"Так\"","х","х","х","х","х","х","загальна кількість \"Так\"","х","х"]
["1.1.",{"$nulls":3},0]
[2,"господарські товариства, у статутному капіталі яких більше 50 відсотків акцій (часток) належать державі – усього, у тому числі щодо окремих підприємств:","х",null,0,null,null,"загальна кількість \"Так\"","загальна кількість \"Так\"","х","х","загальна кількість \"Утворено\"",null,null,"загальна кількість \"Утворено\"",null,null,"загальна кількість \"Утворено\"","х",{"$nulls":4},"загальна кількість \"Так\"","загальна кількість \"Так\"","х","загальна кількість \"Так\"","х","х","х","х","х","х","загальна кількість \"Так\"","х","х"]
["2.1. ",{"$nulls":3},{"$f":"F15+G15","v":0}]
[]
[{"$nulls":22},"* Інформація зазначається станом на останній день звітного кварталу (31 грудня звітного року). Графи 24 - 36 заповнюються лише за звітний рік. Для цілей квартальної звітності в графах  24 -36 зазначається 'X'."]
[{"$nulls":22},"1 У графах 5 - 7 зазначається відповідна кількість членів наглядової ради суб’єкта господарювання, повноваження яких були дійсними у звітному періоді."]
[{"$nulls":22},"2 У графі 8 зазначається, чи у звітному періоді більшість членів наглядової ради суб’єкта господарювання, повноваження яких були дійсними, були незалежними."]
[{"$nulls":22},"3 У графі 9 зазначається, чи у звітному періоді кількість членів наглядової ради суб’єкта господарювання, повноваження яких були дійсними, становила більше половини від кількісного складу наглядової ради, визначеного статутом суб'єкта господарювання."]
[{"$nulls":22},"4 Графи 10 та 11 заповнюються у разі, якщо значення у графі 5 є меншим, ніж значення у графі 4. "]
[{"$nulls":22},"5 У графі 10 зазначається інформація про причини виникнення вакансії (у довільній формі). "]
[{"$nulls":22},"6 У графі 11 зазначається інформація про дії, яких ужито суб’єктом управління для добору членів наглядової ради суб’єкта господарювання на вакантні посади (у разі наявності – із посиланням на відповідні рішення). "]
[{"$nulls":22},"7 У випадку більше ніж одного іншого комітету дані надаються в додаткових рядках."]
[{"$nulls":22},"8 У графах 13, 16 та 20 зазначається кількісний склад відповідного комітету, визначеного положенням про відповідний комітет наглядової ради або рішенням наглядової ради суб'єкта господарювання, у звітному періоді."]
[{"$nulls":22},"9 У графі 19 зазначаються назви інших комітетів наглядової ради у звітному періоді."]
[{"$nulls":22},"10 У графах 14, 17 та 21 зазначається фактична кількість членів відповідних комітетів у звітному періоді."]
[{"$nulls":22},"11 У разі якщо члени наглядової ради суб’єкта господарювання працювали у звітному періоді на безоплатній основі (громадських засадах), заповнюється графа 23."]
[{"$nulls":22},"12 Оцінка проведена у порядку, визначеному постановою Кабінету Міністрів України від 10.01.2025 № 12 \"Деякі питання оцінювання діяльності наглядової ради та звітування про роботу наглядової ради державного унітарного підприємства, господарського товариства, у статутному капіталі якого більше 50 відсотків акцій (часток) належать державі\"."]
[{"$nulls":22},"13 У графі 26 зазначається повне найменування та ідентифікаційний код юридичної особи, яка була залучена у якості незалежного консультанта для здійснення зовнішньої оцінки діяльності наглядової ради суб'єкта господарювання."]
[{"$nulls":22},"14 У графах 28 - 32 зазначаються відповідні бальні оцінки, визначені у звіті про оцінку наглядової ради суб’єкта господарювання (у разі проведення незалежної оцінки зазначаються бали, визначені за її результатами)."]
[{"$nulls":22},"15 У графі 36 зазначається URL-адреса власного веб-сайту суб'єкта господарювання або суб'єкта управління, на якому розміщено затверджений звіт про роботу наглядової ради суб’єкта господарювання за звітний рік або (у разі відсутності) звіт про оцінку наглядової ради суб’єкта господарювання."]
[]
[{"$nulls":22},"_______________________________________________________________"]

{"sheet":"5 (члени НР)","index":4,"n_rows":29,"n_cols":22,"rows_kept":29,"merged":[[1,18,1,21],[3,0,3,21],[4,0,4,21],[6,0,8,0],[6,1,8,1],[6,2,8,2],[6,3,6,13],[6,14,6,17],[6,18,8,18],[6,19,8,19],[6,20,8,20],[6,21,8,21],[7,3,8,3],[7,4,8,4],[7,5,8,5],[7,6,8,6],[7,7,8,7],[7,8,8,8],[7,9,8,9],[7,10,8,10],[7,11,8,11],[7,12,8,12],[7,13,8,13],[7,14,8,14],[7,15,8,15],[7,16,7,17],[17,0,17,21],[28,0,28,21]]}
[{"$nulls":18},"Додаток 5 "]
[null," ",{"$nulls":16},"до Методичних рекомендацій щодо здійснення контролю за виконанням функцій з управління об’єктами державної власності, узагальнення інформації про діяльність суб’єктів господарювання державного сектору економіки та наглядових рад суб’єктів господарювання державного сектору економіки та застосування критеріїв (оцінки) ефективності управління об’єктами державної власності  "]
[]
["ІНФОРМАЦІЯ ПРО ЧЛЕНІВ НАГЛЯДОВИХ РАД *"]
["суб’єктів господарювання державного сектору економіки, функції з управління якими або корпоративними правами держави у статутному капіталі яких виконує _________________, за _________ (період, рік)"]
[]
["№","Повне найменування суб’єкта господарювання державного сектору економіки (далі – суб'єкт господарювання)","Ідентифікаційний код","Персональний склад наглядової ради суб'єкта господарювання",{"$nulls":10},"Комітети наглядової ради 5",{"$nulls":3},"Сума винагороди члену наглядової ради суб'єкта господарювання 6 (тис. гривень) ","Член наглядової ради суб'єкта господарювання, працював у звітному періоді на безоплатній основі (громадських засадах) \n(БО)","Чи відповідає процедура встановлення винагороди Політиці винагороди членів наглядових рад державних унітарних підприємств, господарських товариств, у статутному капіталі яких більше 50 відсотків акцій (часток) належать державі, затвердженій постановою Кабінету Міністрів України від 29.11.2024 № 1369 \"Деякі питання Політики державної власності\"\n (Так/Ні)","Посилання на звіт про винагороду наглядової ради суб'єкта господарювання 7"]
[{"$nulls":3},"Власне ім’я, по батькові (за наявності) та прізвище члена наглядової ради суб'єкта господарювання","Громадянство члена  наглядової ради суб'єкта господарювання","Стать члена наглядової ради суб'єкта господарювання (ч / ж / інша)","Вік члена наглядової ради суб'єкта господарювання","Статус члена наглядової ради суб'єкта господарювання (незалежний / представник держави)","Посада члена наглядової ради суб'єкта господарювання (голова / заступник голови / член)","Члена наглядової ради суб'єкта господарювання призначено за результатами конкурсу 1 (так /ні/ не застосовується) ","Дата призначення члена наглядової ради суб'єкта господарювання 2","Нормативно-правовий акт, на підставі якого призначено члена наглядової ради суб'єкта господарювання","Дата закінчення повноважень члена наглядової ради суб'єкта господарювання 3","Підстава припинення повноважень члена наглядової ради суб'єкта господарювання 4","Комітет з питань призначень та винагород (голова / член / не є членом / не створено)","Комітет з питань аудиту (голова / член / не є членом / не створено)","Інші комітети"]
[{"$nulls":16},"Назва комітету","Статус члена (голова / член / не є членом / не створено)"]
[1,2,{"$f":"B10+1","v":3},4,5,6,7,8,9,10,11,12,13,14,15,16,17,18,19,20,21,22]
[null,"Усього щодо суб'єкта управління (1 + 2), у тому числі за групами суб'єктів господарювання:","х","х","х","х","х","х","х","х","х","х","х","х","х","х","х",null,null,"загальна кількість \"БО\"","загальна кількість \"Так\"","х"]
[1,"державні унітарні підприємства – усього, у тому числі щодо окремих підприємств:","х","х","х","х","х","х","х","х","х","х","х","х","х","х","х",null,null,"загальна кількість \"БО\"","загальна кількість \"Так\"","х"]
["1.1."]
[2,"господарські товариства, у статутному капіталі яких більше 50 відсотків акцій (часток) належать державі – усього, у тому числі щодо окремих підприємств:","х","х","х","х","х","х","х","х","х",null,"х","х","х","х","х",null,null,"загальна кількість \"БО\"","загальна кількість \"Так\"","х"]
["2.1. "]
[]
["* Інформація зазначається станом на останній день звітного кварталу (31 грудня звітного року), крім випадків, коли примітками нижче зазначено інше."]
["1 У графі 10 зазначається, чи було члена наглядової ради суб'єкта господарювання призначено у порядку, передбаченому постановою Кабінету Міністрів України  від 10.03.2017 № 142 \"Деякі питання управління державними унітарними підприємствами та господарськими товариствами, у статутному капіталі яких більше 50 відсотків акцій (часток) належать державі\", зі змінами; інформація \"так\" або \"ні\" зазначається щодо незалежних членів наглядової ради суб'єкта господарювання, щодо представників держави зазначається \"не застосовується\"."]
["2 У графі 11 зазначається дата рішення суб'єкта управління (загальних зборів) суб'єкта господарювання, яким було прийнято рішення про призначення члена наглядової ради суб'єкта господарювання."]
["3 У графі 13 зазначається:"]
["для членів наглядової ради суб'єкта господарювання, повноваження яких були дійсними у звітному періоді - дата закінчення терміну дії повноважень;"]
["для членів наглядової ради суб'єкта господарювання, повноваження яких були припинені у звітному періоді - дата фактичного припинення повноважень. "]
["4 У графі 14 зазначається пункт відповідно до частини восьмої статті 112 Закону України \"Про управління об'єктами державної власності \", зі змінами, або \"закінчення терміну повноважень\"."]
["5 У разі якщо відповідний комітет не створено, у графах 15, 16, 18 відповідно зазначається \"не створено\"."]
["6 У графі 19 зазначається сума винагороди, виплачена за звітний період відповідному члену наглядової ради суб'єкта господарювання, повноваження якого були дійсними у звітному періоді. У разі, якщо відповідний член наглядової ради суб'єкта господарювання працював у звітному періоді на безоплатній основі (громадських засадах), у графі 20 зазначається \"БО\"."]
["7 У графі 22 зазначається URL-адреса власного веб-сайту суб'єкта господарювання або суб'єкта управління, на якому розміщено звіт про винагороду наглядової ради суб'єкта господарювання за звітний рік."]
[]
[]
["_______________________________________________________________"]

{"sheet":"6 (інформаційний)","index":5,"n_rows":85,"n_cols":7,"rows_kept":85,"merged":[[1,4,1,5],[3,0,3,6],[4,0,4,6],[9,0,12,0],[9,1,12,1],[9,2,12,2],[9,3,12,3],[9,4,12,4],[13,0,16,0],[13,1,16,1],[13,2,16,2],[13,3,16,3],[13,4,16,4],[17,0,20,0],[17,1,20,1],[17,2,20,2],[17,3,20,3],[17,4,20,4],[21,0,24,0],[21,1,24,1],[21,2,24,2],[21,3,24,3],[21,4,24,4],[25,0,28,0],[25,1,28,1],[25,2,28,2],[25,3,28,3],[25,4,28,4],[29,0,32,0],[29,1,32,1],[29,2,32,2],[29,3,32,3],[29,4,32,4],[33,0,36,0],[33,1,36,1],[33,2,36,2],[33,3,36,3],[33,4,36,4],[38,0,41,0],[38,1,41,1],[38,2,41,2],[38,3,41,3],[38,4,41,4],[42,0,45,0],[42,1,45,1],[42,2,45,2],[42,3,45,3],[42,4,45,4],[46,0,49,0],[46,1,49,1],[46,2,49,2],[46,3,49,3],[46,4,49,4],[50,0,53,0],[50,1,53,1],[50,2,53,2],[50,3,53,3],[50,4,53,4],[54,0,57,0],[54,1,57,1],[54,2,57,2],[54,3,57,3],[54,4,57,4],[59,0,62,0],[59,1,62,1],[59,2,62,2],[59,3,62,3],[59,4,62,4],[63,0,66,0],[63,1,66,1],[63,2,66,2],[63,3,66,3],[63,4,66,4],[67,0,70,0],[67,1,70,1],[67,2,70,2],[67,3,70,3],[67,4,70,4],[71,0,74,0],[71,1,74,1],[71,2,74,2],[71,3,74,3],[71,4,74,4],[75,0,78,0],[75,1,78,1],[75,2,78,2],[75,3,78,3],[75,4,78,4],[80,0,80,6],[84,0,84,6]]}
["          ",{"$nulls":3},"Додаток 6"]
[{"$nulls":4},"до Методичних рекомендацій щодо здійснення контролю за виконанням функцій з управління об’єктами державної власності, узагальнення інформації про діяльність суб’єктів господарювання державного сектору економіки та наглядових рад суб’єктів господарювання державного сектору економіки та застосування критеріїв (оцінки) ефективності управління об’єктами державної власності  "]
[]
["ПЕРЕЛІК, ФОРМУЛИ РОЗРАХУНКУ ТА АЛГОРИТМ РОЗРАХУНКУ *"]
["фінансових коефіцієнтів для оцінки ефективності управління суб’єктів господарювання державного сектору економіки"]
[]
["Найменування показника","Формула розрахунку","Алгоритм розрахунку з використанням форм фінансової звітності","Алгоритм розрахунку з використанням форми звіту про виконання фінансового плану","Значення коефіцієнта відповідно до \nрозділу \"ІV. Коефіцієнтний аналіз\" таблиці \"Основні фінансові показники\" звіту про виконання фінансового плану  ","Діапазон значення показника","Кількість балів "]
[1,2,3,4,5,6,7]
["Коефіцієнти рентабельності"]
["Коефіцієнт рентабельності діяльності","чистий фінансовий результат /\nчистий дохід від реалізації продукції (товарів, робіт, послуг) \n","ф.2 р.2350 або р.2355 гр.3 /\nф.2 р.2000 гр.3"," р. 1200 гр. 4 / р.1000 гр. 4","р. 5010 гр. 4","більше 0,1",20]
[{"$nulls":5},"від 0,03 (включно) до 0,1 (включно)",15]
[{"$nulls":5},"від 0 (включно) до 0,03",10]
[{"$nulls":5},"менше 0",0]
["Коефіцієнт рентабельності операційних витрат","фінансовий результат від операційної діяльності /\n(операційні витрати  (собівартість реалізованої продукції (товарів, робіт, послуг) + адміністративні витрати + витрати на збут + інші операційні витрати)","ф.2 р.2190 або р.2195 гр.3 /\n(ф.2 р.2050 + р.2130 + р.2150 + р.2180 гр.3)","р. 1100 гр. 4 / \n(р. 1010 + 1030 + 1060 + 1080 гр. 4)","р. 5011 гр. 4","більше 0,1",20]
[{"$nulls":5},"від 0,03 (включно) до 0,1 (включно)",15]
[{"$nulls":5},"від 0 (включно) до 0,03",10]
[{"$nulls":5},"менше 0",0]
["Коефіцієнт зростання операційних витрат","((операційні витрати t (собівартість реалізованої продукції (товарів, робіт, послуг) + адміністративні витрати + витрати на збут + інші операційні витрати) – \nопераційні витрати t-1 (собівартість реалізованої продукції (товарів, робіт, послуг) + адміністративні витрати + витрати на збут + інші операційні витрати)) / \n(операційні витрати t-1 (собівартість реалізованої продукції (товарів, робіт, послуг) + адміністративні витрати + витрати на збут + інші операційні витрати)\n– ((індекс споживчих t **  – 100) / 100)","((ф.2 р.2050 + р.2130 + р.2150 + р.2180 гр.3) – \n(ф.2 р.2050 + р.2130 + р.2150 + р.2180 гр.4)) /\n(ф.2 р.2050 + р.2130 + р.2150 + р.2180 гр.4)  – \n((індекс споживчих цін t ** – 100) / 100)","((р. 1010 + 1030 + 1060 + 1080 гр. 4) – \n(р. 1010 + 1030 + 1060 + 1080 гр. 3)) / \n(р. 1010 + 1030 + 1060 + 1080 гр. 3) – \n((індекс споживчих цін t ** – 100) / 100)","р. 5012 гр. 4","менше 0,05 (включно)",20]
[{"$nulls":5},"від 0,05 до 0,08 (включно)",15]
[{"$nulls":5},"від 0,08 до 0,1 (включно)",10]
[{"$nulls":5},"більше 0,1",0]
["Коефіцієнт рентабельності EBITDA ","(фінансовий результат від операційної діяльності \n+ амортизація) /\nчистий дохід від реалізації продукції (товарів, робіт, послуг) ","(ф.2 р.2190 або р.2195 гр.3 +\nф.2 р.2515 гр.3) /\nф.2 р.2000 гр.3  ","р. 1300 гр. 4 / р. 1000 гр. 4","р. 5013 гр. 4","більше 0,3 (включно)",20]
[{"$nulls":5},"від 0,2 (включно) до 0,3",15]
[{"$nulls":5},"від 0 (включно) до 0,2",10]
[{"$nulls":5},"менше 0",0]
["Коефіцієнт рентабельності власного капіталу","чистий фінансовий результат /\nвласний капітал ","ф.2 р.2350 або р.2355 гр.3 /\nф.1 р.1495 гр.4","р. 1200 гр. 4 / р. 6080 гр. 4","р. 5014 гр. 4","більше 0,12 (включно)",20]
[{"$nulls":5},"від 0,06 (включно) до 0,12",15]
[{"$nulls":5},"від 0 (включно) до 0,06",10]
[{"$nulls":5},"менше 0",0]
["Коефіцієнт рентабельності  активів","чистий фінансовий результат /\nсукупні активи \n","ф.2 р.2350 або р.2355 гр.3 /\nф.1 р.1300 гр.4","р. 1200 гр. 4 / р. 6020 гр. 4","р. 5015 гр. 4","більше 0,09 (включно)",20]
[{"$nulls":5},"від 0,05 (включно) до 0,09",15]
[{"$nulls":5},"від 0 (включно) до 0,05",10]
[{"$nulls":5},"менше 0",0]
["Коефіцієнт зростання доходів","(чистий дохід від реалізації продукції (товарів, робіт, послуг) t – чистий дохід від реалізації продукції (товарів, робіт, послуг) t-1) /\nчистий дохід від реалізації продукції (товарів, робіт, послуг) t-1 – \n((індекс споживчих цін t ** – 100) /100)","(ф.2 р.2000 гр.3 – ф.2 р.2000 гр.4)  /\nф.2 р.2000 гр.3 – (індекс споживчих цін t ** – 100) / 100)","(р. 1000  гр. 4 – р. 1000  гр. 3) / \nр. 1000  гр. 3 – \n(індекс споживчих цін t ** – 100) / 100)","р. 5016 гр. 4","більше 0,1 (включно)",20]
[{"$nulls":5},"від 0,08 (включно) до 0,1",15]
[{"$nulls":5},"від 0 (включно) до 0,08",10]
[{"$nulls":5},"менше 0",0]
["Коефіцієнти платоспроможності"]
["Коефіцієнт фінансової стійкості","власний капітал /\n(довгострокові зобов’язання і забезпечення + поточні зобов’язання і забезпечення)","ф.1 р.1495 гр.4 /\n(ф.1 р.1595 гр.4 + ф.1 р.1695 гр.4)","(р. 6080 гр. 4 / \n(р.6030 + 6040 гр. 4)","р. 5020 гр. 4","більше 1,5 (включно)",20]
[{"$nulls":5},"від 1 (включно) до 1,5",15]
[{"$nulls":5},"від 0,33 (включно) до 1",10]
[{"$nulls":5},"менше 0,33",0]
["Коефіцієнт покриття EBITDA фінансових витрат","EBITDA\n(фінансовий результат від операційної діяльності (прибуток/збиток) + \nамортизація) / фінансові витрати","(ф.2 р.2190 або р.2195 гр.3 + ф.2 р.2515 гр.3) /\nф.2 р.2250 гр.3","р. 1300 гр. 4 / р. 1140 гр. 4","р. 5021 гр. 4","більше 5 (включно)",20]
[{"$nulls":5},"від 3 (включно) до 5",15]
[{"$nulls":5},"від 1 (включно) до 3",10]
[{"$nulls":5},"менше 1",0]
["Коефіцієнт відношення боргу до EBITDA","((фінансові зобов’язання (короткострокові кредити банків + довгострокові кредити банків) – (грошові та їх еквіваленти кошти + поточні фінансові інвестиції)) / EBITDA\n((фінансовий результат від операційної діяльності \n(прибуток/збиток) + амортизація))","((ф.1 р.1600 + ф.1 р.1510) гр.4 –  (ф.1 р.1165 +ф.1 р.1160) гр.4)) /\n(ф.2 р.2190 або р.2195 гр.3 + ф.2 р.2515 гр.3)","((р. 6041 + 6031 гр. 4) – \n(р. 6015 + 6014 гр. 4)) / р. 1300 гр. 4","р. 5022 гр. 4","від 0 (включно) до 2 (включно)",20]
[{"$nulls":5},"від 2 до 3 (включно) ",15]
[{"$nulls":5},"більше 3 до 5 (включно)",10]
[{"$nulls":5},"більше 5 або менше 0",0]
["Коефіцієнт відношення боргу до власного капіталу","(фінансові зобов’язання (короткострокові кредити банків + \nдовгострокові кредити банків) /\nвласний капітал","(ф.1 р.1600 + ф.1 р.1510 гр.4) /\nф.1 р.1495 гр.4","(р. 6041 + 6031 гр. 4) / р. 6080 гр. 4","р. 5023 гр. 4","від 0 (включно) до 0,3 (включно)",20]
[{"$nulls":5},"від 0,3 до 0,8 (включно)",15]
[{"$nulls":5},"від 0,8 до 2,5 (включно)",10]
[{"$nulls":5},"більше 2,5 або менше 0",0]
["Коефіцієнт відношення боргу до активів","(довгострокові зобов’язання і забезпечення + поточні зобов’язання і забезпечення) /\nсукупні активи ","(ф.1 р.1595 + ф.1 р.1695 гр.4) /\nф.1 р.1300 гр.4","(р. 6030 + 6040 гр. 4) / р. 6020 гр. 4","р. 5024 гр. 4","від 0 (включно) до 0,25 (включно)",20]
[{"$nulls":5},"від 0,25 до 0,5 (включно)",15]
[{"$nulls":5},"від 0,5 до 0,75 (включно) ",10]
[{"$nulls":5},"більше 0,75 ",0]
["Коефіцієнти ліквідності"]
["Коефіцієнт поточної ліквідності","оборотні активи /\nпоточні зобов’язання і забезпечення","ф.1 р.1195 гр.4 /\nф.1 р.1695 гр.4","р. 6010  гр. 4 / р. 6040 гр. 4","р. 5030 гр. 4","від 2 (включно) до 3",20]
[{"$nulls":5},"від 1,5 (включно) до 2",15]
[{"$nulls":5},"від 1 (включно) до 1,5",10]
[{"$nulls":5},"менше 1 або більше 3 (включно)",0]
["Коефіцієнт швидкої ліквідності","(оборотні активи − запаси) /\nпоточні зобов’язання і забезпечення","(ф.1 р.1195 гр.4 – ф.1 р.1100) гр.4 /\nф.1 р.1695 гр.4 ","(р. 6010 – 6011 гр. 4) / р. 6040 гр. 4","р. 5031 гр. 4","від 1,2 (включно) до 2",20]
[{"$nulls":5},"від 1 (включно) до 1,2 ",15]
[{"$nulls":5},"від 0,8 (включно) до 1",10]
[{"$nulls":5},"менше 0,8 або більше 2 (включно)",0]
["Коефіцієнт абсолютної ліквідності","(гроші та їх еквіваленти + поточні фінансові інвестиції) /\nпоточні зобов’язання і забезпечення","(ф.1 р.1165 гр.4 + ф.1 р.1160 гр.4) / ф.1 р.1695 гр.4","(р. 6015 + 6014 гр. 4) / р. 6040 гр. 4","р. 5032 гр. 4","більше 1 (включно)",20]
[{"$nulls":5},"від 0,8 (включно) до 1",15]
[{"$nulls":5},"від 0,7 (включно) до 0,8",10]
[{"$nulls":5},"від 0 до 0,7",0]
["Період обороту дебіторської заборгованості","(дебіторська заборгованість за продукцію, товари, роботи, послуги * кількість календарних днів у звітному році або з моменту державної реєстрації нової юридичної особи) /\nчистий дохід від реалізації продукції (товарів, робіт, послуг)","(ф.1 р.1125 гр.4 * кількість календарних днів у звітному році або з моменту державної реєстрації нової юридичної особи) /\nф.2 р.2000 гр.3","(р. 6012 гр. 4 * кількість календарних днів у звітному році або з моменту державної реєстрації нової юридичної особи) / р. 1000 гр. 4","р. 5033 гр. 4","менше 30 (включно)",20]
[{"$nulls":5},"від 30 до 45 (включно)",15]
[{"$nulls":5},"від 45 до 55 (включно)",10]
[{"$nulls":5},"більше 55",0]
["Період обороту кредиторської заборгованості","(поточна кредиторська заборгованість за товари, роботи, послуги * кількість календарних днів у звітному році або з моменту державної реєстрації нової юридичної особи) /\nсобівартість реалізованої продукції (товарів, робіт, послуг) ","(ф.1 р.1615 гр.4 * кількість календарних днів у звітному році або з моменту державної реєстрації нової юридичної особи) /\nф.2 р.2050 гр.3","(р. 6043 гр. 4 * кількість календарних днів у звітному році або з моменту державної реєстрації нової юридичної особи)  / р. 1010 гр. 4","р. 5034 гр. 4","менше 30 (включно)",20]
[{"$nulls":5},"від 30 до 45 (включно)",15]
[{"$nulls":5},"від 45 до 60 (включно)",10]
[{"$nulls":5},"більше 60",0]
[]
["* Для непрацюючих суб’єктів господарювання та тих, щодо яких інформація стосовно їхньої діяльності відсутня або не надана суб'єктом управління, розрахунок фінансових коефіцієнтів не здійснюється, а в додатку 7 (графа 39) до Методичних рекомендацій щодо здійснення контролю за виконанням функцій з управління об’єктами державної власності, узагальнення інформації про діяльність суб’єктів господарювання державного сектору економіки та наглядових рад суб’єктів господарювання державного сектору економіки та застосування критеріїв (оцінки) ефективності управління об’єктами державної власності присвоюється неприйнятний рівень."]
["** Індекси споживчих цін на товари та послуги (рік до попереднього року) відповідно до даних Державної служби статистики є доступними за посиланням: https://www.ukrstat.gov.ua/operativ/menu/menu_u/cit.htm."]
["*** t – звітний рік, t-1 – попередній рік."]
[]
["                                                                                                                                             _______________________________________________________________"]

{"sheet":"7 (оцін_фін коеф)","index":6,"n_rows":27,"n_cols":39,"rows_kept":27,"merged":[[1,17,1,22],[3,0,3,22],[4,0,4,22],[6,0,8,0],[6,1,8,1],[6,2,8,2],[6,3,6,16],[6,17,6,26],[6,27,6,36],[6,37,8,37],[6,38,8,38],[7,3,7,4],[7,5,7,6],[7,7,7,8],[7,9,7,10],[7,11,7,12],[7,13,7,14],[7,15,7,16],[7,17,7,18],[7,19,7,20],[7,21,7,22],[7,23,7,24],[7,25,7,26],[7,27,7,28],[7,29,7,30],[7,31,7,32],[7,33,7,34],[7,35,7,36],[16,23,16,38],[17,23,17,38],[26,23,26,38]]}
["      ",{"$nulls":16},"Додаток 7 ",{"$nulls":20},"Продовження додатка 7"]
[{"$nulls":17},"до Методичних рекомендацій щодо здійснення контролю за виконанням функцій з управління об’єктами державної власності, узагальнення інформації про діяльність суб’єктів господарювання державного сектору економіки та наглядових рад суб’єктів господарювання державного сектору економіки та застосування критеріїв (оцінки) ефективності управління об’єктами державної власності "]
[]
["ФІНАНСОВІ КОЕФІЦІЄНТИ *, **,***",{"$nulls":36},""]
["для оцінки ефективності управління суб'єктами господарювання державного сектору економіки, функції з управління якими або корпоративними правами держави у статутному капіталі яких виконує ________________, за ________ (рік)"]
[]
["№","Повне найменування суб’єкта господарювання державного сектору економіки (далі – суб'єкт господарювання)","Ідентифікаційний код","Коефіцієнти рентабельності",{"$nulls":13},"                                                      Коефіцієнти платоспроможності",{"$nulls":9},"Коефіцієнти ліквідності",{"$nulls":9},"ОФ - загальна кількість балів за фінансовими коефіцієнтами\n(сума граф 5, 7, 9, 11, 13, 15, 17, 19, 21, 23, 25, 27, 29, 31, 33, 35 та 37)","Оцінка за фінансовими показниками: *****\nприйнятний рівень – від 272 до 340 балів\nдостатній рівень – від 204 до 271 балів\nнедостатній рівень – від 102 до 203 балів\nнеприйнятний рівень – менше 102 балів"]
[{"$nulls":3},"Коефіцієнт рентабельності діяльності",null,"Коефіцієнт рентабельності операційних витрат",null,"Коефіцієнт зростання операційних витрат",null,"Коефіцієнт рентабельності EBITDA ",null,"Коефіцієнт рентабельності  власного капіталу",null,"Коефіцієнт рентабельності  активів",null,"Коефіцієнт зростання доходів",null,"Коефіцієнт фінансової стійкості",null,"Коефіцієнт покриття EBITDA фінансових витрат",null,"Коефіцієнт відношення боргу до EBITDA",null,"Коефіцієнт відношення боргу до власного капіталу",null,"Коефіцієнт відношення боргу до активів",null,"Коефіцієнт поточної ліквідності",null,"Коефіцієнт швидкої ліквідності",null,"Коефіцієнт абсолютної ліквідності",null,"Період обороту дебіторської заборгованості****",null,"Період обороту кредиторської заборгованості****"]
[{"$nulls":3},"Значення показника","Кількість балів","Значення показника","Кількість балів","Значення показника","Кількість балів","Значення показника","Кількість балів","Значення показника","Кількість балів","Значення показника","Кількість балів","Значення показника","Кількість балів","Значення показника","Кількість балів","Значення показника","Кількість балів","Значення показника","Кількість балів","Значення показника","Кількість балів","Значення показника","Кількість балів","Значення показника","Кількість балів","Значення показника","Кількість балів","Значення показника","Кількість балів","Значення показника","Кількість балів","Значення показника","Кількість балів"]
[1,2,3,4,5,6,7,8,9,10,11,12,13,14,15,16,17,18,19,20,21,22,23,24,25,26,27,28,29,30,31,32,33,34,35,36,37,38,39]
[null,"Усього щодо суб'єкта управління (1 + 2), у тому числі за групами суб'єктів господарювання:","х","х","х","х","х","х","х","х","х","х","х","х","х","х","х","х","х","х","х","х","х","х","х","х","х","х","х","х","х","х","х","х","х","х","х","х","х"]
[1,"державні унітарні підприємства – усього, у тому числі щодо окремих підприємств:","х","х","х","х","х","х","х","х","х","х","х","х","х","х","х","х","х","х","х","х","х","х","х","х","х","х","х","х","х","х","х","х","х","х","х","х","х"]
["1.1.",{"$nulls":36},{"$f":"E13+G13+I13+K13+M13+O13+Q13+S13+U13+W13+Y13+AA13+AC13+AE13+AG13+AI13+AK13","v":0}]
[2,"господарські товариства, у статутному капіталі яких більше 50 відсотків акцій (часток) належать державі – усього, у тому числі щодо окремих підприємств:","х","х","х","х","х","х","х","х","х","х","х","х","х","х","х","х","х","х","х","х","х","х","х","х","х","х","х","х","х","х","х","х","х","х","х","х","х"]
["2.1. ",{"$nulls":36},{"$f":"E15+G15+I15+K15+M15+O15+Q15+S15+U15+W15+Y15+AA15+AC15+AE15+AG15+AI15+AK15","v":0}]
[]
[{"$nulls":23},"* Розраховуються за формулами та згідно з алгоритмами у додатку 6 до Методичних рекомендацій щодо здійснення контролю за виконанням функцій з управління об’єктами державної власності, узагальнення інформації про діяльність суб’єктів господарювання державного сектору економіки та наглядових рад суб’єктів господарювання державного сектору економіки та застосування критеріїв (оцінки) ефективності управління об’єктами державної власності (далі –  Методичні рекомендації)."]
[{"$nulls":23},"** Для суб’єктів господарювання, які протягом звітного періоду не провадили фінансово-господарську діяльність (непрацюючі), але при цьому не визнані в установленому порядку банкрутами та щодо яких не розпочато процедуру реорганізації (реструктуризації), ліквідації за рішенням суб’єкта управління або ліквідації за рішенням суду, а також тих, щодо яких інформація стосовно їхньої діяльності відсутня або не надана, графи 4 – 38 не заповнюються, а у графі 39 присвоюється неприйнятний рівень."]
[{"$nulls":23},"*** Для суб'єктів господарювання, які внесені до Реєстру неприбуткових установ та організацій, додаток 7 не заповнюється, відповідно оцінка за фінансовими показниками не проводиться."]
[{"$nulls":23},"****Не розраховується та не використовується для оцінки за фінансовими показниками для фінансових компаній, зазначених у пункті 6.17 Методичних рекомендацій."]
[{"$nulls":23},"***** Оцінка за фінансовими показниками для цих фінансових компаній:"]
[{"$nulls":23},"   прийнятний рівень – від 240 до 300 балів\n"]
[{"$nulls":23},"достатній рівень – від 180 до 239 балів"]
[{"$nulls":23},"недостатній рівень – від 90 до 179 балів"]
[{"$nulls":23},"неприйнятний рівень – менше 90 балів"]
[]
[{"$nulls":23},"_______________________________________________________________"]

{"sheet":"8 (частка_фін коеф)","index":7,"n_rows":21,"n_cols":4,"rows_kept":21,"merged":[[1,2,1,3],[3,0,3,3],[4,0,4,3],[5,0,5,3],[20,0,20,3]]}
["  ","                                                                                                                                                                             ","Додаток 8 "]
[null,"                                                                                                                                                                          ","до Методичних рекомендацій щодо здійснення контролю за виконанням функцій з управління об’єктами державної власності, узагальнення інформації про діяльність суб’єктів господарювання державного сектору економіки та наглядових рад суб’єктів господарювання державного сектору економіки та застосування критеріїв (оцінки) ефективності управління об’єктами державної власності "]
[]
["РОЗРАХУНОК ЧАСТОК СУБ'ЄКТІВ ГОСПОДАРЮВАННЯ ДЕРЖАВНОГО СЕКТОРУ ЕКОНОМІКИ"]
["ЗА РІВНЕМ ВИКОНАННЯ ФІНАНСОВИХ КОЕФІЦІЄНТІВ"]
["для включення до загальної оцінки ефективності управління об'єктами державної власності \n(суб'єктом управління зазначити назву) ________________, за ________ (рік)"]
[]
["№","Оцінка","Кількість суб'єктів господарювання, одиниць","Частка суб'єктів господарювання, %"]
[1,{"$f":"A9+1","v":2},{"$f":"B9+1","v":3},4]
[1,"Усього суб’єктів господарювання державного сектору економіки, функції з управління якими або корпоративними правами держави у статутному капіталі яких   виконує суб'єкт управління          ",null,100]
["1.1","Кількість суб'єктів господарювання державного сектору економіки, які не підлягали оцінці відповідно до умов пункту 6.11 Методології (графа 4 = графа 3 рядок 1.1 / графа 3 рядок 1 * 100)",null,{"$f":"C11/C10*100","v":{"$error":"#DIV/0!"}}]
["1.2","Кількість суб'єктів господарювання державного сектору економіки, які підлягали оцінці (графа 4 = графа 3 рядок 1.2 / графа 3 рядок 1 * 100)",null,{"$f":"C12/C10*100","v":{"$error":"#DIV/0!"}}]
[null,"у тому числі їх діяльність оцінена як:","х","х"]
["1.2.1","Прийнятний рівень (графа 4 = графа 3 рядок 1.2.1 / графа 3 рядок 1.2 * 100)",null,{"$f":"C14/C12*100","v":{"$error":"#DIV/0!"}}]
["1.2.2","Достатній рівень (графа 4 = графа 3 рядок 1.2.2 / графа 3 рядок 1.2 * 100)",null,{"$f":"C15/C12*100","v":{"$error":"#DIV/0!"}}]
["1.2.3","Недостатній рівень (графа 4 = графа 3 рядок 1.2.3 / графа 3 рядок 1.2 * 100)",null,{"$f":"C16/C12*100","v":{"$error":"#DIV/0!"}}]
["1.2.4","Неприйнятний рівень (графа 4 = графа 3 рядок 1.2.4 / графа 3 рядок 1.2 * 100)",null,{"$f":"C17/C12*100","v":{"$error":"#DIV/0!"}}]
["1.2.4.1","у тому числі, кількість суб'єктів господарювання державного сектору економіки, яким присвоєно Неприйнятний рівень як непрацюючим суб’єктам господарювання та тим, щодо яких інформація стосовно їхньої діяльності відсутня або не надана (графа 4 = графа 3 рядок 1.2.4.1 / графа 3 рядок 1.2.4 * 100) ",null,{"$f":"C18/C17*100","v":{"$error":"#DIV/0!"}}]
["1.2.5","Прийнятний або достатній рівень ( графа 3 = рядок 1.2.1 + рядок 1.2.2) (графа 4 = графа 3 рядок 1.2.5 / графа 3 рядок 1.2 * 100)",null,{"$f":"C19/C12*100","v":{"$error":"#DIV/0!"}}]
[]
["_______________________________________________________________"]

{"sheet":"9 (оцін_ччп_дивід)","index":8,"n_rows":24,"n_cols":13,"rows_kept":24,"merged":[[3,0,3,12],[4,0,4,12],[5,0,5,12],[7,0,8,0],[7,1,8,1],[7,2,8,2],[7,3,8,3],[7,4,7,6],[7,7,7,9],[7,10,8,10],[7,11,8,11],[7,12,8,12],[17,0,17,12],[23,0,23,12]]}
[{"$nulls":12},"Додаток 9 "]
[{"$nulls":12},"до Методичних рекомендацій щодо здійснення контролю за виконанням функцій з управління об’єктами державної власності, узагальнення інформації про діяльність суб’єктів господарювання державного сектору економіки та наглядових рад суб’єктів господарювання державного сектору економіки та застосування критеріїв (оцінки) ефективності управління об’єктами державної власності "]
[]
["ПОКАЗНИКИ ВИКОНАННЯ ВИПЛАТИ*"]
["ЧАСТИНИ ЧИСТОГО ПРИБУТКУ (ДИВІДЕНДІВ) НА КОРИСТЬ ДЕРЖАВИ"]
["суб’єктами господарювання державного сектору економіки, функції з управління якими або корпоративними правами держави у статутному капіталі яких виконує ________________, за ________ (рік)"]
[]
["№","Повне найменування суб’єкта господарювання державного сектору економіки (далі – суб'єкт господарювання)","Ідентифікаційний код","Чи встановлено для суб’єкта господарювання завдання державної політики? (Так/Ні) 1","Відрахування частини чистого прибутку до державного бюджету, тис. гривень",null,null,"Відрахування частини чистого прибутку на виплату дивідендів на державну частку, тис. гривень",null,null,"Балмакс – максимальна кількість балів (50 балів, якщо значення у графі 4 = \"Так\"; 100 балів, якщо значення у графі 4 = \"Ні\")","ОЧЧП/Д - загальна кількість балів за виплатою частини чистого прибутку / дивідендів на користь держави:\nвідсоток виконання \n(графа 6 / графа 5) або (графа 9 / графа 8) х Балмакс (графа 11) 2 ","Оцінка за виконання виплати частини чистого прибутку (дивідендів) на користь держави:\nприйнятний рівень:\n- від 40 до 50 балів (при максимальній кількості у 50 балів);\n- від 80 до 100 балів (при максимальній кількості у 100 балів);\nдостатній рівень:\n- від 30 до 39 балів (при максимальній кількості у 50 балів);\n- від 60 до 79 балів (при максимальній кількості у 100 балів);\nнедостатній рівень:\n- від 15 до 29 балів (при максимальній кількості у 50 балів);\n- від 30 до 59 балів (при максимальній кількості у 100 балів);\nнеприйнятний рівень:\n- менше 15 балів (при максимальній кількості у 50 балів);\n- менше 30 балів (при максимальній кількості у 100 балів)."]
[{"$nulls":4},"Вплан\n(звіт про виконання фінансового плану суб’єкта господарювання за звітний рік, рядок 2131, графа 5)","Вфакт\n(звіт про виконання фінансового плану суб’єкта господарювання за звітний рік, рядок 2131, графа 4)","відсоток виконання \n(графа 6 x 100 / графа 5)","Вплан\n(звіт про виконання фінансового плану суб’єкта господарювання за звітний рік, рядок 2132, графа 5)","Вфакт\n(звіт про виконання фінансового плану суб’єкта господарювання за звітний рік, рядок 2132, графа 4)","відсоток виконання \n(графа 9 x 100 / графа 8)"]
[1,{"$f":"A10+1","v":2},3,4,5,6,7,8,9,10,11,12,13]
[null,"Усього щодо суб'єкта управління (1 + 2), у тому числі за групами суб'єктів господарювання:","х","загальна кількість \"Так\"",null,null,{"$f":"IF(E11>0,ROUND(F11/E11*100,1),)","v":{"v":0,"d":"0.0"}},null,null,{"$f":"IF(H11>0,ROUND(I11/H11*100,1),)","v":{"v":0,"d":"0.0"}},"х","х","х"]
[1,"державні унітарні підприємства – усього, у тому числі щодо окремих підприємств:","х","загальна кількість \"Так\"",null,null,{"$f":"IF(E12>0,ROUND(F12/E12*100,1),)","v":{"v":0,"d":"0.0"}},null,null,{"v":0,"d":"0.0"},"х","х","х"]
["1.1.",{"$nulls":5},{"$f":"IF(E13>0,ROUND(F13/E13*100,1),)","v":{"v":0,"d":"0.0"}},null,null,{"v":0,"d":"0.0"},{"$f":"IF(OR($D13=\"\", $D13=\"-\"), \"-\", IF($D13=\"Так\", 50, 100))","v":"-"},{"$f":"IF(OR(K13=\"\", K13=\"-\"), \"-\",\n IF(OR(ISNUMBER(G13), ISNUMBER(J13)),\n     ROUND(MIN(K13, MAX(G13, J13) * K13/100),0),\n \"-\"))","v":"-"}]
[2,"господарські товариства, у статутному капіталі яких більше 50 відсотків акцій (часток) належать державі – усього, у тому числі щодо окремих підприємств:","х","загальна кількість \"Так\"",null,null,{"v":0,"d":"0.0"},null,null,{"v":0,"d":"0.0"},"х","х","х"]
["2.1. ",{"$nulls":5},{"v":0,"d":"0.0"},null,null,{"v":0,"d":"0.0"},{"$f":"IF(OR($D15=\"\", $D15=\"-\"), \"-\", IF($D15=\"Так\", 50, 100))","v":"-"},{"$f":"IF(OR(K15=\"\", K15=\"-\"), \"-\",\n IF(OR(ISNUMBER(G15), ISNUMBER(J15)),\n     ROUND(MIN(K15, MAX(G15, J15) * K15/100),0),\n \"-\"))","v":"-"}]
[]
["* Оцінка за виконання виплати частини чистого прибутку (дивідендів) не здійснюється для суб'єктів господарювання, що внесені до Реєстру неприбуткових установ та організацій або не здійснюють такі виплати відповідно Статуту суб'єкта господарювання."]
["1 Завдання державної політики, у тому числі спеціальні обов’язки, встановлюються у нефінансових цілях у листі очікувань власника суб'єкта господарювання відповідно до постанови Кабінету Міністрів України від 12.11.2024 № 1293 \"Про затвердження Порядку оцінки досягнення державним унітарним підприємством, господарським товариством, у статутному капіталі якого більше 50 відсотків акцій (часток) належать державі, поставлених цілей діяльності, визначених у листі очікувань власника\". "]
["2 У разі коли фактичний показник перевищує плановий, рівень виконання вважається таким, що дорівнює 100% - якщо значення графи 4 \"Так\" або 50% - якщо значення графи 4 \"Ні\", і максимальний бал не може бути перевищений."]
[]
[]
[]
[]
["_______________________________________________________________"]

{"sheet":"10 (частка_ччп_дивід)","index":9,"n_rows":21,"n_cols":4,"rows_kept":21,"merged":[[1,2,1,3],[3,0,3,3],[4,0,4,3],[5,0,5,3],[20,0,20,3]]}
["  ","                                                                                                                                                                                  ","Додаток 10"]
[null,null,"до Методичних рекомендацій щодо здійснення контролю за виконанням функцій з управління об’єктами державної власності, узагальнення інформації про діяльність суб’єктів господарювання державного сектору економіки та наглядових рад суб’єктів господарювання державного сектору економіки та застосування критеріїв (оцінки) ефективності управління об’єктами державної власності  "]
[]
["РОЗРАХУНОК ЧАСТОК СУБ'ЄКТІВ ГОСПОДАРЮВАННЯ ДЕРЖАВНОГО СЕКТОРУ ЕКОНОМІКИ"]
["ЗА РІВНЕМ ВИКОНАННЯ ВИПЛАТ ЧАСТИНИ ЧИСТОГО ПРИБУТКУ(ДИВІДЕНДІВ) НА КОРИСТЬ ДЕРЖАВИ"]
["для включення до загальної оцінки ефективності управління об'єктами державної власності \n(суб'єктом управління зазначити назву) ________________, за ________ (рік)"]
[]
["№","Оцінка","Кількість суб'єктів господарювання, одиниць","Частка суб'єктів господарювання, %"]
[1,{"$f":"A9+1","v":2},{"$f":"B9+1","v":3},4]
[1,"Усього суб’єктів господарювання державного сектору економіки, функції з управління якими або корпоративними правами держави у статутному капіталі яких виконує суб'єкт управління          ",null,100]
["1.1","Кількість суб'єктів господарювання державного сектору економіки, які не підлягали оцінці відповідно до умов пункту 6.11 Методології (графа 4 = графа 3 рядок 1.1 / графа 3 рядок 1 * 100)",null,{"$f":"C11/C10*100","v":{"$error":"#DIV/0!"}}]
["1.2","Кількість суб'єктів господарювання державного сектору економіки, які підлягали оцінці (графа 4 = графа 3 рядок 1.2 / графа 3 рядок 1 * 100)",null,{"$f":"C12/C10*100","v":{"$error":"#DIV/0!"}}]
[null,"у тому числі їх діяльність оцінена як:","х","х"]
["1.2.1","Прийнятний рівень (графа 4 = графа 3 рядок 1.2.1 / графа 3 рядок 1.2 * 100)",null,{"$f":"C14/C12*100","v":{"$error":"#DIV/0!"}}]
["1.2.2","Достатній рівень (графа 4 = графа 3 рядок 1.2.2 / графа 3 рядок 1.2 * 100)",null,{"$f":"C15/C12*100","v":{"$error":"#DIV/0!"}}]
["1.2.3","Недостатній рівень (графа 4 = графа 3 рядок 1.2.3 / графа 3 рядок 1.2 * 100)",null,{"$f":"C16/C12*100","v":{"$error":"#DIV/0!"}}]
["1.2.4","Неприйнятний рівень (графа 4 = графа 3 рядок 1.2.4 / графа 3 рядок 1.2 * 100)",null,{"$f":"C17/C12*100","v":{"$error":"#DIV/0!"}}]
["1.2.4.1","у тому числі, кількість суб'єктів господарювання державного сектору економіки, яким присвоєно Неприйнятний рівень як непрацюючим суб’єктам господарювання державного сектору економіки та тим, щодо яких інформація стосовно їхньої діяльності відсутня або не надана (графа 4 = графа 3 рядок 1.2.4.1 / графа 3 рядок 1.2.4 * 100) ",null,{"$f":"C18/C17*100","v":{"$error":"#DIV/0!"}}]
["1.2.5","Прийнятний або достатній рівень ( графа 3 = рядок 1.2.1 + рядок 1.2.2) (графа 4 = графа 3 рядок 1.2.5 / графа 3 рядок 1.2 * 100)",{"$f":"C14+C15","v":0},{"$f":"C19/C12*100","v":{"$error":"#DIV/0!"}}]
[]
["_______________________________________________________________"]

{"sheet":"11 (оцін_держ політ)","index":10,"n_rows":17,"n_cols":10,"rows_kept":17,"merged":[[1,8,1,9],[3,0,3,9],[4,0,4,9],[6,0,7,0],[6,1,7,1],[6,2,7,2],[6,3,7,3],[6,4,6,6],[6,7,7,7],[6,8,7,8],[6,9,7,9],[15,0,15,9],[16,0,16,9]]}
[{"$nulls":8},"Додаток 11"]
[{"$nulls":8},"до Методичних рекомендацій щодо здійснення контролю за виконанням функцій з управління об’єктами державної власності, узагальнення інформації про діяльність суб’єктів господарювання державного сектору економіки та наглядових рад суб’єктів господарювання державного сектору економіки та застосування критеріїв (оцінки) ефективності управління об’єктами державної власності  "]
[]
["ПОКАЗНИКИ ВИКОНАННЯ ЗАВДАНЬ ДЕРЖАВНОЇ ПОЛІТИКИ *"]
["суб'єктами господарювання державного сектору економіки, функції з управління якими або корпоративними правами держави у статутному капіталі яких виконує ________________, за ________ (рік)"]
[]
["№","Повне найменування суб’єкта господарювання державного сектору економіки (далі – суб'єкт господарювання)","Ідентифікаційний код","Чи встановлено для суб’єкта господарювання завдання державної політики? (Так/Ні)","Завдання держаної політики, встановлені в листі очікувань власника суб’єкта господарювання",null,null,"Балмакс – максимальна кількість балів (50 балів, якщо значення у графі 4 = \"Так\"; 0 балів, якщо значення у графі 4 = \"Ні\")","ОДП - загальна кількість балів за виконання завдань державної політики:\nвідсоток виконання (графа 6/графа 5) х Балмакс (графа 8)","Оцінка досягнення цілей державної політики:\nприйнятний рівень – \nзначення від 40 до 50 балів;\nдостатній рівень – \nзначення від 30 до 39 балів;\nнедостатній рівень – \nзначення від 15 до 29 балів;\nнеприйнятний рівень – \nзначення менше 15 балів"]
[{"$nulls":4},"Зплан – кількість завдань держаної політики, встановлених у листі очікувань власника суб’єкта господарювання","Зфакт – кількість виконаних завдань (щорічний звіт про досягнення цілей діяльності суб’єкта господарювання, визначених у листі очікувань власника)","відсоток виконання \n(графа 6 x 100 / графа 5)"]
[1,{"$f":"A9+1","v":2},3,4,5,6,7,8,9,10]
[null,"Усього щодо суб'єкта управління (1 + 2), у тому числі за групами суб'єктів господарювання:","х","загальна кількість \"Так\"",{"$nulls":3},"х","х","х"]
[1,"державні унітарні підприємства – усього, у тому числі щодо окремих підприємств:","х","загальна кількість \"Так\"",{"$nulls":3},"х","х","х"]
["1.1.",{"$nulls":5},{"$f":"F12*100/E12","v":{"$error":"#DIV/0!"}},{"$f":"IF(D12=\"Так\",50,0)","v":0},{"$f":"F12/E12*H12","v":{"$error":"#DIV/0!"}}]
[2,"господарські товариства, у статутному капіталі яких більше 50 відсотків акцій (часток) належать державі – усього, у тому числі щодо окремих підприємств:","х","загальна кількість \"Так\"",{"$nulls":3},"х","х","х"]
["2.1. ",{"$nulls":5},{"$f":"F14*100/E14","v":{"$error":"#DIV/0!"}},{"$f":"IF(D14=\"Так\",50,0)","v":0},{"$f":"F14/E14*H14","v":{"$error":"#DIV/0!"}}]
[]
["* Завдання державної політики, у тому числі спеціальні обов’язки, встановлюються у нефінансових цілях у листі очікувань власника суб’єкта господарювання у відповідності до постанови Кабінету Міністрів України від 12.11.2024 р. № 1293 \"Про затвердження Порядку оцінки досягнення державним унітарним підприємством, господарським товариством, у статутному капіталі якого більше 50 відсотків акцій (часток) належать державі, поставлених цілей діяльності, визначених у листі очікувань власника\". Інформація про виконання цих завдань наводиться у щорічному звіті про досягнення цілей суб’єктом господарювання, визначених у листі очікувань власника суб’єкта господарювання."]
["_______________________________________________________________"]

{"sheet":"12 (частка_держ політ)","index":11,"n_rows":22,"n_cols":4,"rows_kept":22,"merged":[[1,2,1,3],[3,0,3,3],[4,0,4,3],[5,0,5,3],[21,0,21,3]]}
["  ","                                                                                                                                                                          ","Додаток 12    "]
[null,null,"до Методичних рекомендацій щодо здійснення контролю за виконанням функцій з управління об’єктами державної власності, узагальнення інформації про діяльність суб’єктів господарювання державного сектору економіки та наглядових рад суб’єктів господарювання державного сектору економіки та застосування критеріїв (оцінки) ефективності управління об’єктами державної власності  "]
[]
["РОЗРАХУНОК ЧАСТОК СУБ’ЄКТІВ ГОСПОДАРЮВАННЯ ДЕРЖАВНОГО СЕКТОРУ ЕКОНОМІКИ"]
["ЗА РІВНЕМ ВИКОНАННЯ ЗАВДАНЬ ДЕРЖАВНОЇ ПОЛІТИКИ"]
["для включення до загальної оцінки ефективності управління об'єктами державної власності \n(суб'єктом управління зазначити назву) ________________, за ________ (рік)"]
[]
["№","Оцінка","Кількість суб'єктів господарювання державного сектору економіки, одиниць","Частка суб'єктів господарювання державного сектору економіки, %"]
[1,2,3,4]
[1,"Усього суб’єктів господарювання державного сектору економіки, функції з управління якими або корпоративними правами держави у статутному капіталі яких виконує суб'єкт управління          ",null,100]
["1.1","Кількість суб'єктів господарювання державного сектору економіки, які не підлягали оцінці відповідно до умов пункту 6.11 Методології (графа 4 = графа 3 рядок 1.1 / графа 3 рядка 1 * 100)",null,{"$f":"C11/C10*100","v":{"$error":"#DIV/0!"}}]
["1.2","Кількість суб'єктів господарювання державного сектору економіки, які не підлягали оцінці, оскільки відповідно листів очікувань власника не мають завдань державної політики серед цільових нефінансових показників, (графа 4 = графа 3 рядок 1.2 / графа 3 рядок 1 * 100)",null,{"$f":"C12/C10*100","v":{"$error":"#DIV/0!"}}]
["1.3","Кількість суб'єктів господарювання державного сектору економіки, які підлягали оцінці (графа 4 = графа 3 рядок 1.3 / графа 3 рядок 1 * 100)",null,{"$f":"C13/C10*100","v":{"$error":"#DIV/0!"}}]
[null,"у тому числі їх діяльність оцінена як:","х","х"]
["1.3.1","Прийнятний рівень (графа 4 = графа 3 рядок 1.3.1 / графа 3 рядок 1.3 * 100)",null,{"$f":"C15/C13*100","v":{"$error":"#DIV/0!"}}]
["1.3.2","Достатній рівень (графа 4 = графа 3 рядок 1.3.2 / графа 3 рядок 1.3 * 100)",null,{"$f":"C16/C13*100","v":{"$error":"#DIV/0!"}}]
["1.3.3","Недостатній рівень (графа 4 = графа 3 рядок 1.3.3 / графа 3 рядок 1.3 * 100)",null,{"$f":"C17/C13*100","v":{"$error":"#DIV/0!"}}]
["1.3.4","Неприйнятний рівень (графа 4 = графа 3 рядок 1.3.4 / графа 3 рядок 1.3 * 100)",null,{"$f":"C18/C13*100","v":{"$error":"#DIV/0!"}}]
["1.3.4.1","у тому числі, кількість суб'єктів господарювання державного сектору економіки, яким присвоєно Неприйнятний рівень як непрацюючим суб’єктам господарювання державного сектору економіки та тим, щодо яких інформація стосовно їхньої діяльності відсутня або не надана (графа 4 = графа 3 рядок 1.3.4.1 / графа 3 рядок 1.3.4 *100) ",null,{"$f":"C19/C18*100","v":{"$error":"#DIV/0!"}}]
["1.3.5","Прийнятний або достатній рівень ( графа 3 = рядок 1.3.1 + рядок 1.3.2) (графа 4 = графа 3 рядок 1.3.5 / графа 3 рядок 1.3 * 100)",{"$f":"C15+C16","v":0},{"$f":"C20/C13*100","v":{"$error":"#DIV/0!"}}]
[]
["_______________________________________________________________"]

{"sheet":"13 (інформаційний)","index":12,"n_rows":39,"n_cols":2,"rows_kept":39,"merged":[[3,0,3,1],[4,0,4,1],[13,0,13,1],[14,0,14,1],[15,0,15,1],[16,0,16,1],[18,0,18,1],[19,0,19,1],[20,0,20,1],[21,0,21,1],[38,0,38,1]]}
["                                                                                                                                                                                                    ","Додаток 13 "]
[null,"до Методичних рекомендацій щодо здійснення контролю за виконанням функцій з управління об’єктами державної власності, узагальнення інформації про діяльність суб’єктів господарювання державного сектору економіки та наглядових рад суб’єктів господарювання державного сектору економіки та застосування критеріїв (оцінки) ефективності управління об’єктами державної власності  "]
[]
["ПОРЯДОК РОЗРАХУНКУ ПОКАЗНИКІВ ДІЯЛЬНОСТІ НАГЛЯДОВОЇ РАДИ СУБ'ЄКТА ГОСПОДАРЮВАННЯ,*"]
["що застосовуються для оцінки управління об'єктами державної власності \n(оцінки ефективності діяльності суб’єкта управління)"]
[]
["Показник 1. Наявність наглядової ради","0 - 10 балів"]
["Показник 2. Незалежність наглядової ради","0 - 10 балів"]
["Показник 3. Правомочність наглядової ради","0 - 15 балів"]
["Показник 4. Оцінка діяльності наглядової ради","0 - 15 балів"]
["Показник 5. Ефективність діяльності наглядової ради","0 - 10 балів"]
["РАЗОМ","0 - 60 балів"]
[]
["* Окремі показники діяльності наглядової ради суб'єкта господарювання включаються до оцінки управління об'єктами державної власності (оцінки ефективності діяльності суб’єкта управління)."]
[]
["Максимальна кількість балів, яка може бути нарахована суб'єкту управління за виконання показників діяльності наглядової ради становить 60 балів, які визначаються таким чином: "]
["Інформація для оцінки згідно з додатком 3 до Методичних рекомендацій щодо здійснення контролю за виконанням функцій з управління об’єктами державної власності, узагальнення інформації про діяльність суб’єктів господарювання державного сектору економіки та наглядових рад суб’єктів господарювання державного сектору економіки та застосування критеріїв (оцінки) ефективності управління об’єктами державної власності   (далі – Методичні рекомендації) "]
["Показник 1. Наявність наглядової ради"]
["У графі 4 значення показника \"так\" або \"ні\", у графі 11 значення показника \"так\" – 10 балів "]
["У графі 4 значення показника \"так\", у графі 11 значення показника \"ні\" – 0 балів. У такому разі, суб'єкт управління отримує 0 балів за виконання показників діяльності наглядової ради"]
["У графі 4 значення показника \"ні\", у графі 11 значення показника \"ні\" – суб'єкт управління не оцінюється за виконання показників діяльності наглядової ради  "]
["Інформація для оцінки згідно з додатком 4 до цих Методичних рекомендацій"]
["Показник 2. Незалежність наглядової ради"]
["У графі 8 значення показника \"так\" – 10 балів"]
["У графі 8 значення показника \"ні\" – 0 балів"]
["Показник 3. Правомочність наглядової ради"]
["У графі 9 значення показника \"так\" – 15 балів"]
["У графі 9 значення показника \"ні\" – 0 балів. У такому разі 0 балів присвоюється за показниками 4 та 5"]
["Показник 4. Оцінка діяльності наглядової ради"]
["У графах 24 або 27 значення показника \"так\", у графі 32 значення показника \"бальна оцінка\" присвоєно: "]
["\"1\"– 15 балів"]
["\"2\" – 10 балів"]
["\"3\" – 5 балів"]
["\"4\" – 0 балів"]
["У графах 24 та 27 значення показника \"ні\" – 0 балів"]
["Показник 5. Ефективність діяльності наглядової ради"]
["У графі 35 значення показника \"Задовільна\"– 10 балів"]
["У графі 35 значення показника \"Незадовільна\"– 0 балів"]
["_______________________________________________________________"]

{"sheet":"14 (діяль НР_бали)","index":13,"n_rows":17,"n_cols":9,"rows_kept":17,"merged":[[1,6,1,8],[3,0,3,8],[4,0,4,8],[14,0,14,8],[16,0,16,8]]}
[{"$nulls":6},"Додаток 14"," "]
[{"$nulls":6},"до Методичних рекомендацій щодо здійснення контролю за виконанням функцій з управління об’єктами державної власності, узагальнення інформації про діяльність суб’єктів господарювання державного сектору економіки та наглядових рад суб’єктів господарювання державного сектору економіки та застосування критеріїв (оцінки) ефективності управління об’єктами державної власності  "]
[]
["РОЗРАХУНОК ПОКАЗНИКІВ ДІЯЛЬНОСТІ НАГЛЯДОВОЇ РАДИ *"]
["суб'єктів господарювання державного сектору економіки, функції з управління якими або корпоративними правами держави у статутному капіталі яких виконує ________________, за ________ (рік)"]
[]
["№","Повне найменування суб’єкта господарювання державного сектору економіки (далі – суб'єкт господарювання)","Ідентифікаційний код","Показник 1. Наявність наглядової ради, кількість балів","Показник 2. Незалежність наглядової ради, кількість балів","Показник 3. Правомочність наглядової ради, кількість балів","Показник 4. \nОцінка діяльності наглядової ради, кількість балів","Показник 5. Ефективність діяльності наглядової ради, кількість балів","РАЗОМ, \nкількість балів"]
[1,2,3,4,5,6,7,8,9]
[null,"Усього щодо суб'єкта управління (1 + 2), у тому числі за групами суб'єктів господарювання:","х","х","х","х","х","х","х"]
[1,"державні унітарні підприємства – усього, у тому числі щодо окремих підприємств:","х","х","х","х","х","х","х"]
["1.1.",{"$nulls":7},{"$f":"SUM(D11:H11)","v":0}]
[2,"господарські товариства, у статутному капіталі яких більше 50 відсотків акцій (часток) належать державі – усього, у тому числі щодо окремих підприємств:","х","х","х","х","х","х","х"]
["2.1. ",{"$nulls":7},{"$f":"SUM(D13:H13)","v":0}]
[]
["* Розрахунок здійснюється у відповідно до додатку 13 до Методичних рекомендацій щодо здійснення контролю за виконанням функцій з управління об’єктами державної власності, узагальнення інформації про діяльність суб’єктів господарювання державного сектору економіки та наглядових рад суб’єктів господарювання державного сектору економіки та застосування критеріїв (оцінки) ефективності управління об’єктами державної власності."]
[]
["_______________________________________________________________"]

{"sheet":"15 (оцін_корп упр)","index":14,"n_rows":17,"n_cols":8,"rows_kept":17,"merged":[[3,0,3,7],[4,0,4,7],[14,0,14,7],[15,0,15,7],[16,0,16,7]]}
[{"$nulls":7},"Додаток 15  "]
[{"$nulls":7},"до Методичних рекомендацій щодо здійснення контролю за виконанням функцій з управління об’єктами державної власності, узагальнення інформації про діяльність суб’єктів господарювання державного сектору економіки та наглядових рад суб’єктів господарювання державного сектору економіки та застосування критеріїв (оцінки) ефективності управління об’єктами державної власності  "]
[]
["ПОКАЗНИКИ ВИКОНАННЯ ВИМОГ ЗАКОНОДАВСТВА ЩОДО КОРПОРАТИВНОГО УПРАВЛІННЯ"]
["суб'єктів господарювання державного сектору економіки, функції з управління якими або корпоративними правами держави у статутному капіталі яких виконує ________________, за ________ (рік)"]
[]
["№","Повне найменування суб’єкта господарювання державного сектору економіки (далі – суб'єкт господарювання)","Ідентифікаційний код","Чи є обов’язковим створення наглядової ради (Так/Ні) 1","Чи було у звітному періоді передбачено статутом суб’єкта господарювання наглядову раду як орган управління (Так/Ні) 2","Наявність постійного керівника (Так/Ні)","ОКУ - загальна кількість балів за виконання вимог корпоративного управління:\nЯкщо значення у графах 4 або 5 = \"Так\", оцінюється діяльність наглядової ради у відповідності до додатку 14.\nЯкщо значення у графі 4 = \"Ні\" та графі 5 = \"Ні\", оцінюється наявність постійного керівника (постійний керівник – 60 балів; виконувач обов’язків – 0)","Оцінка за виконання вимог корпоративного управління:\nприйнятний рівень – від 40 до 60 балів;\nдостатній рівень – від 30 до 39 балів;\nнедостатній рівень – від 15 до 29 балів;\nнеприйнятний рівень – менше 15 балів"]
[1,2,3,4,5,6,7,8]
[null,"Усього щодо суб'єкта управління (1 + 2), у тому числі за групами суб'єктів господарювання:","х","загальна кількість \"Так\"","загальна кількість \"Так\"","х","х","х"]
[1,"державні унітарні підприємства – усього, у тому числі щодо окремих підприємств:","х","загальна кількість \"Так\"","загальна кількість \"Так\"","х","х","х"]
["1.1.",null,null,{"$f":"'[1]3'!D12","v":0},{"$f":"'[1]3'!K12","v":0}]
[2,"господарські товариства, у статутному капіталі яких більше 50 відсотків акцій (часток) належать державі – усього, у тому числі щодо окремих підприємств:","х","загальна кількість \"Так\"","загальна кількість \"Так\"","х","х","х"]
["2.1. ",null,null,{"$f":"'[1]3'!D14","v":0},{"$f":"'[1]3'!K14","v":0}]
[]
["1 Заповнюється значення з графи 4 додатку 3 до Методичних рекомендацій щодо здійснення контролю за виконанням функцій з управління об’єктами державної власності, узагальнення інформації про діяльність суб’єктів господарювання державного сектору економіки та наглядових рад суб’єктів господарювання державного сектору економіки та застосування критеріїв (оцінки) ефективності управління об’єктами державної власності (далі – Методичні рекомендації)."]
["2 Заповнюється значення з графи 11 додатку 3 до Методичних рекомендацій."]
["_______________________________________________________________"]

{"sheet":"16 (частка_корп упр)","index":15,"n_rows":22,"n_cols":4,"rows_kept":22,"merged":[[1,2,1,3],[3,0,3,3],[4,0,4,3],[5,0,5,3],[6,0,6,3],[21,0,21,3]]}
["          ",null,"Додаток 16 "]
[null,null,"до Методичних рекомендацій щодо здійснення контролю за виконанням функцій з управління об’єктами державної власності, узагальнення інформації про діяльність суб’єктів господарювання державного сектору економіки та наглядових рад суб’єктів господарювання державного сектору економіки та застосування критеріїв (оцінки) ефективності управління об’єктами державної власності  "]
[]
["РОЗРАХУНОК ЧАСТОК СУБ'ЄКТІВ ГОСПОДАРЮВАННЯ ДЕРЖАВНОГО СЕКТОРУ ЕКОНОМІКИ"]
["ЗА РІВНЕМ ВИКОНАННЯ ВИМОГ ЗАКОНОДАВСТВА ЩОДО КОРПОРАТИВНОГО УПРАВЛІННЯ"]
["для включення до загальної оцінки ефективності управління об'єктами державної власності"]
["(суб'єктом управління – зазначити назву) ________________, за ________ (рік)"]
[]
["№","Оцінка","Кількість суб'єктів господарювання державного сектору економіки, одиниць","Частка суб'єктів господарювання державного сектору економіки, %"]
[1,{"$f":"A10+1","v":2},{"$f":"B10+1","v":3},4]
[1,"Усього суб’єктів господарювання державного сектору економіки, функції з управління якими або корпоративними правами держави у статутному капіталі яких виконує суб'єкт управління          ",null,100]
["1.1","Кількість суб'єктів господарювання державного сектору економіки, які не підлягали оцінці відповідно до умов пункту 6.11 Методології (графа 4 = графа 3 рядок 1.1 / графа 3 рядка 1 * 100)",null,{"$f":"C12/C11*100","v":{"$error":"#DIV/0!"}}]
["1.2","Кількість суб'єктів господарювання державного сектору економіки, які підлягали оцінці (графа 4 = графа 3 рядок 1.2 / графа 3 рядка 1 * 100)",null,{"$f":"C13/C11*100","v":{"$error":"#DIV/0!"}}]
[null,"у тому числі їх діяльність оцінена як:","х","х"]
["1.2.1","Прийнятний рівень (графа 4 = графа 3 рядок 1.2.1 / графа 3 рядок 1.2 * 100)",null,{"$f":"C15/C13*100","v":{"$error":"#DIV/0!"}}]
["1.2.2","Достатній рівень (графа 4 = графа 3 рядок 1.2.2 / графа 3 рядок 1.2 * 100)",null,{"$f":"C16/C13*100","v":{"$error":"#DIV/0!"}}]
["1.2.3","Недостатній рівень (графа 4 = графа 3 рядок 1.2.3 / графа 3 рядок 1.2 * 100)",null,{"$f":"C17/C13*100","v":{"$error":"#DIV/0!"}}]
["1.2.4","Неприйнятний рівень (графа 4 = графа 3 рядок 1.2.4 / графа 3 рядок 1.2 *100)",null,{"$f":"C18/C13*100","v":{"$error":"#DIV/0!"}}]
["1.2.4.1","у тому числі, кількість суб'єктів господарювання державного сектору економіки, яким присвоєно Неприйнятний рівень як непрацюючим суб’єктам господарювання та тим, щодо яких інформація стосовно їхньої діяльності відсутня або не надана (графа 4 = графа 3 рядок 1.2.4.1 / графа 3 рядок 1.2.4 * 100) ",null,{"$f":"C19/C18*100","v":{"$error":"#DIV/0!"}}]
["1.2.5","Прийнятний або достатній рівень ( графа 3 = рядок 1.2.1 + рядок 1.2.2) (графа 4 = графа 3 рядок 1.2.5 / графа 3 рядок 1.2 * 100)",{"$f":"C15+C16","v":0},{"$f":"C20/C13*100","v":{"$error":"#DIV/0!"}}]
[]
["_______________________________________________________________"]

{"sheet":"17 (оцін_інтегр показ)","index":16,"n_rows":21,"n_cols":9,"rows_kept":21,"merged":[[3,0,3,8],[4,0,4,8],[14,0,14,8],[15,0,15,8],[16,0,16,8],[17,0,17,8],[20,0,20,8]]}
["          ",{"$nulls":7},"Додаток 17 "]
[{"$nulls":8},"до Методичних рекомендацій щодо здійснення контролю за виконанням функцій з управління об’єктами державної власності, узагальнення інформації про діяльність суб’єктів господарювання державного сектору економіки та наглядових рад суб’єктів господарювання державного сектору економіки та застосування критеріїв (оцінки) ефективності управління об’єктами державної власності  "]
[]
["РОЗРАХУНОК ІНТЕГРАЛЬНОГО ПОКАЗНИКА ОЦІНКИ"]
["суб'єктів господарювання державного сектору економіки, функції з управління якими або корпоративними правами держави у статутному капіталі яких виконує ________________, за ________ (рік)"]
[]
["№","Повне найменування суб’єкта господарювання державного сектору економіки (далі – суб'єкт господарювання)","Ідентифікаційний код","ОФ - кількість балів за основними фінансовими показниками 1","ОЧЧП/Д - кількість балів за виплатою частини чистого прибутку / дивідендів на користь держави 2"," ОДП - кількість балів за виконання завдань державної політики 3","ОКУ - кількість балів за виконання вимог корпоративного управління 4","Значення інтегрального показника (О) 5\n(графа 4 + графа 5 + графа 6 + графа 7)","Оцінка за інтегральним показником\nприйнятний рівень – значення О від 400 до 500 балів;\nдостатній рівень – значення О від 300 до 399 балів;\nнедостатній рівень – значення О від 150 до 299 балів;\nнеприйнятний рівень – значення О менше 150 балів"]
[1,2,3,4,5,6,7,8,9]
[null,"Усього щодо суб'єкта управління (1 + 2), у тому числі за групами суб'єктів господарювання:","х","х","х","х","х","х","х"]
[1,"державні унітарні підприємства – усього, у тому числі щодо окремих підприємств:","х","х","х","х","х","х","х"]
["1.1.",null,null,{"$f":"'[1]7'!AL13","v":0},{"$f":"'[1]9'!L13","v":"-"},{"$f":"'[1]11'!I12","v":{"$error":"#DIV/0!"}},{"$f":"'[1]15'!G11","v":0},{"$f":"SUM(D11:G11)","v":{"$error":"#DIV/0!"}}]
[2,"господарські товариства, у статутному капіталі яких більше 50 відсотків акцій (часток) належать державі – усього, у тому числі щодо окремих підприємств:","х","х","х","х","х","х","х"]
["2.1. ",null,null,{"$f":"'[1]7'!AL15","v":0},{"$f":"'[1]9'!L15","v":"-"},{"$f":"'[1]11'!I14","v":{"$error":"#DIV/0!"}},{"$f":"'[1]15'!G13","v":0},{"$f":"SUM(D13:G13)","v":{"$error":"#DIV/0!"}}]
[]
["1 Заповнюється значення з графи 38 додатку 7 до Методичних рекомендацій щодо здійснення контролю за виконанням функцій з управління об’єктами державної власності, узагальнення інформації про діяльність суб’єктів господарювання державного сектору економіки та наглядових рад суб’єктів господарювання державного сектору економіки та застосування критеріїв (оцінки) ефективності управління об’єктами державної власності (далі – Методичні рекомендації)."]
["2 Заповнюється значення з графи 12 додатку 9 до цих Методичних рекомендацій."]
["3 Заповнюється значення з графи 9 додатку 11 до цих Методичних рекомендацій."]
["4 Заповнюється значення з графи 7 додатку 15 до цих Методичних рекомендацій."]
["5 О = ОФ + ОЧЧП/Д + ОДП + ОКУ"]
[]
["_______________________________________________________________"]

{"sheet":"18 (загаль оцінка)","index":17,"n_rows":30,"n_cols":18,"rows_kept":30,"merged":[[1,9,1,10],[3,0,3,10],[4,0,4,10],[6,0,7,0],[6,1,7,1],[6,2,7,2],[6,3,7,3],[6,4,6,7],[6,8,7,8],[6,9,6,10],[6,11,6,12],[6,13,6,14],[6,15,6,16],[6,17,7,17],[17,11,23,11],[17,12,17,17],[24,11,26,11],[24,12,24,17],[29,11,29,17]]}
["       ",{"$nulls":8},"Додаток 18 ",{"$nulls":7},"Продовження додатка 18"]
[{"$nulls":9},"до Методичних рекомендацій щодо здійснення контролю за виконанням функцій з управління об’єктами державної власності, узагальнення інформації про діяльність суб’єктів господарювання державного сектору економіки та наглядових рад суб’єктів господарювання державного сектору економіки та застосування критеріїв (оцінки) ефективності управління об’єктами державної власності  "]
[]
["ЗАГАЛЬНА ОЦІНКА"]
["ефективності управління об'єктами державної власності (оцінка суб'єкта управління) за ________ (рік)"]
[]
["№","Найменування суб’єкта управління об'єктами державної власності (далі – суб'єкт управління)","Кількість суб’єктів господарювання державного сектору економіки, функції з управління якими або корпоративними правами держави у статутному капіталі яких виконує суб’єкт управління ","Кількість суб’єктів господарювання державного сектору економіки, функції з управління якими або корпоративними правами держави у статутному капіталі яких виконує суб’єкт управління, що підлягають оцінці","Кількість суб’єктів господарювання державного сектору економіки, функції з управління якими або корпоративними правами держави у статутному капіталі яких виконує суб’єкт управління, що мають оцінку за інтегральним показником",{"$nulls":3},"Частка суб’єктів господарювання державного сектору економіки,  функції з управління якими або корпоративними правами держави у статутному капіталі яких виконує суб’єкт управління, які мають прийнятний або достатній рівень за інтегральним показником: (графа 5 + графа 6) / графа 4 * 100","Оцінка за фінансовими коефіцієнтами \n(додаток 8)",null,"Оцінка за виконання виплат частини чистого прибутку (дивідендів) на користь держави (додаток 10)",null,"Оцінка за виконання завдань державної політики \n(додаток 12)",null,"Оцінка за виконання вимог щодо корпоративного управління (додаток 16)",null,"Оцінка суб’єкта управління 5\n(Позитивна /\nЗадовільна /\nНегативна)"]
[{"$nulls":4},"Прийнятний рівень ","Достатній рівень","Недостатній рівень","Неприйнятний рівень",null,"Частка суб'єктів господарювання державного сектору економіки, що мають прийнятний або достатній рівень 1","Оцінка суб'єкта управління (позитивна – більше 75%, задовільна – від 50% до 75%, негативна – менше 50%)","Частка суб'єктів господарювання державного сектору економіки, що мають прийнятний або достатній рівень 2","Оцінка суб'єкта управління (позитивна – більше 75%, задовільна – від 50% до 75%, негативна – менше 50%)","Частка суб'єктів господарювання державного сектору економіки, що мають прийнятний або достатній рівень 3","Оцінка суб'єкта управління (позитивна – більше 75%, задовільна – від 50% до 75%, негативна – менше 50%)","Частка суб'єктів господарювання державного сектору економіки, що мають прийнятний або достатній рівень 4","Оцінка суб'єкта управління (позитивна – більше 75%, задовільна – від 50% до 75%, негативна – менше 50%)"]
[1,{"$f":"A9+1","v":2},{"$f":"B9+1","v":3},4,5,6,7,8,9,10,11,12,13,14,15,16,17,18]
[{"$nulls":8},{"$f":"(E10+F10)/D10*100","v":{"$error":"#DIV/0!"}},{"$f":"'[1]8 (фін коеф)'!D19","v":{"$error":"#DIV/0!"}},null,{"$f":"'[1]10 (ччп_дивід)'!D19","v":{"$error":"#DIV/0!"}},null,{"$f":"'[1]12 (держ політ)'!D20","v":{"$error":"#DIV/0!"}},null,{"$f":"'[1]16 (корп упр)'!D20","v":{"$error":"#DIV/0!"}}]
[]
[{"$nulls":11},"1 Значення у рядку 1.2.5 графи 4 додатку 8."]
[{"$nulls":11},"2 Значення у рядку 1.2.5 графи 4 у додатку 10."]
[{"$nulls":11},"3 Значення у рядку 1.3.5 графи 4 у додатку 12."]
[{"$nulls":11},"4 Значення у рядку 1.2.5 графи 4 у додатку 16."]
[]
[{"$nulls":11},"5 Оцінка","Критерії"]
[{"$nulls":11},"Позитивна","Якщо більше 75 % суб’єктів господарювання державного сектору економіки, функції з управління якими або корпоративними правами держави у статутному капіталі яких виконує суб'єкт упраавління, мають прийнятний або достатній рівень за інтегральним показником"]
[{"$nulls":12},"та"]
[{"$nulls":12},"суб’єкт управління не має негативних оцінок за жодним із компонентів оцінки:"]
[{"$nulls":12},"за фінансовими коефіцієнтами – графа 11;"]
[{"$nulls":12},"за виконання виплат частини чистого прибутку (дивідендів) на користь держави – графа 13;"]
[{"$nulls":12},"за виконання завдань державної політики – графа 15;"]
[{"$nulls":12},"за виконання вимог щодо корпоративного управління – графа 17."]
[{"$nulls":11},"Задовільна","Якщо від 50 % до 75 % суб’єктів господарювання державного сектору економіки, функції з управління якими або корпоративними правами держави у статутному капіталі яких виконує суб'єкт упраавління, мають прийнятний або достатній рівень за інтегральним показником"]
[{"$nulls":12},"та"]
[{"$nulls":12},"суб’єкт управління не має негативних оцінок за жодним із компонентів оцінки (див. вище)"]
[{"$nulls":11},"Негативна","Усі інші випадки"]
[]
[{"$nulls":11},"_______________________________________________________________"]

{"sheet":"19 (керівник)","index":18,"n_rows":20,"n_cols":15,"rows_kept":20,"merged":[[1,12,1,14],[3,0,3,14],[4,0,4,14],[6,0,7,0],[6,1,7,1],[6,2,7,2],[6,3,7,3],[6,4,7,4],[6,5,7,5],[6,6,6,8],[6,9,6,10],[6,11,7,11],[6,12,7,12],[6,13,7,13],[6,14,7,14],[16,0,16,14],[19,0,19,14]]}
[{"$nulls":12},"Додаток 19 "]
[{"$nulls":12},"до Методичних рекомендацій щодо здійснення контролю за виконанням функцій з управління об’єктами державної власності, узагальнення інформації про діяльність суб’єктів господарювання державного сектору економіки та наглядових рад суб’єктів господарювання державного сектору економіки та застосування критеріїв (оцінки) ефективності управління об’єктами державної власності "]
[]
["ІНФОРМАЦІЯ ПРО КЕРІВНИКІВ *"]
["суб’єктів господарювання державного сектору економіки, функції з управління якими або корпоративними правами держави у статутному капіталі яких виконує _________________, за _________ (період, рік)"]
[]
["№","Повне найменування суб’єкта господарювання державного сектору економіки (далі – суб'єкт господарювання)","Ідентифікаційний код","Наявність постійного керівника суб’єкта господарювання (Так/Ні)","Назва посади керівника суб’єкта господарювання","Керівник суб’єкта господарювання призначений за конкурсом (на звітну дату) \n(Так/Ні)","Проведено конкурс у звітному періоді",null,null,"Укладено контракт з керівником суб’єкта господарювання\n(на звітну дату)",null,"Власне ім’я, по батькові (за наявності) та прізвище керівника суб’єкта господарювання 1","Виконання керівником суб’єкта господарювання умов контракту (Так/Ні)","Розірвано контракт з керівником суб’єкта господарювання у звітному періоді (Так/Ні)","Загальна сума винагороди керівника суб’єкта господарювання\n(тис. гривень) 2"]
[{"$nulls":6},"так/ні","дата проведення","призначено керівника суб’єкта господарювання за результатами конкурсу\n(Так/Ні)","так/ні","строк дії контракту  з керівником суб’єкта господарювання\n(з … по …)"]
[1,{"$f":"A9+1","v":2},3,4,5,6,7,8,9,10,11,12,13,14,15]
[null,"Усього щодо суб'єкта управління (1 + 2), у тому числі за групами суб'єктів господарювання:","х","загальна кількість \"Так\"","x","загальна кількість \"Так\"","загальна кількість \"Так\"","x","загальна кількість \"Так\"","загальна кількість \"Так\"","x","x","загальна кількість \"Так\"","загальна кількість \"Так\""]
[1,"державні унітарні підприємства – усього, у тому числі щодо окремих підприємств:","х","загальна кількість \"Так\"","x","загальна кількість \"Так\"","загальна кількість \"Так\"","x","загальна кількість \"Так\"","загальна кількість \"Так\"","x","x","загальна кількість \"Так\"","загальна кількість \"Так\""]
["1.1."]
[2,"господарські товариства, у статутному капіталі яких більше 50 відсотків акцій (часток) належать державі – усього, у тому числі щодо окремих підприємств:","х","загальна кількість \"Так\"","x","загальна кількість \"Так\"","загальна кількість \"Так\"","x","загальна кількість \"Так\"","загальна кількість \"Так\"","x","x","загальна кількість \"Так\"","загальна кількість \"Так\""]
["2.1. "]
[]
["* Інформація зазначається станом на останній день звітного кварталу (31 грудня звітного року)."]
["1 Якщо контракт з керівником суб’єкта господарювання не укладено, у графі 12 зазначаються власне ім’я, по батькові (за наявності) та прізвище керівника, а в графі 11 проставляється значення \"КнУ\" (контракт не укладено). Якщо керівник суб’єкта господарювання відсутній (графа 4 - \"Ні\"), у графі 12 зазначаються власне ім’я, по батькові (за наявності) та прізвище виконувача обов'язків керівника суб’єкта господарювання, а у графі 5 проставляється значення \"ВО\" (виконувач обов'язків) та зазначається займана посада."]
["2 У графі 15 зазначається сума винагороди, виплачена керівникові за звітний період."]
[]
["_______________________________________________________________"]

{"sheet":"20 (виконавч орган)","index":19,"n_rows":24,"n_cols":18,"rows_kept":24,"merged":[[1,14,1,17],[3,0,3,17],[4,0,4,17],[6,0,7,0],[6,1,7,1],[6,2,7,2],[6,3,7,3],[6,4,7,4],[6,5,7,5],[6,6,6,16],[6,17,7,17],[23,0,23,17]]}
["          ",{"$nulls":13},"Додаток 20 "]
[{"$nulls":14},"до Методичних рекомендацій щодо здійснення контролю за виконанням функцій з управління об’єктами державної власності, узагальнення інформації про діяльність суб’єктів господарювання державного сектору економіки та наглядових рад суб’єктів господарювання державного сектору економіки та застосування критеріїв (оцінки) ефективності управління об’єктами державної власності "]
[]
["ІНФОРМАЦІЯ ПРО ЧЛЕНІВ ВИКОНАВЧИХ ОРГАНІВ *"]
["суб’єктів господарювання державного сектору економіки, функції з управління якими або корпоративними правами держави у статутному капіталі яких виконує _________________, за _________ (період, рік)"]
[]
["№","Повне найменування суб’єкта господарювання державного сектору економіки (далі – суб'єкт господарювання)","Ідентифікаційний код","Виконавчий орган суб’єкта господарювання: одноосібний, колегіальний","Якщо колегіальний, який кількісний склад виконавчого органу суб’єкта господарювання визначено статутними документами, осіб","Якщо колегіальний, який фактичний кількісний склад колегіального виконавчого органу суб’єкта господарювання, осіб","Персональний склад виконавчого органу суб’єкта господарювання",{"$nulls":10},"Сума винагороди члену виконавчого органу суб’єкта господарювання\n(тис. гривень) 4"]
[{"$nulls":6},"Власне ім’я, \nпо батькові \n(за наявності) та прізвище члена виконавчого органу суб’єкта господарювання","Громадянство члена  виконавчого органу суб’єкта господарювання","Стать члена виконавчого органу суб’єкта господарювання (ч/ж/інша)","Вік члена виконавчого органу суб’єкта господарювання","Чи є керівником суб’єкта господарювання (генеральний директор, голова правління, президент тощо) \n(Так/Ні)","Посада члена виконавчого органу суб’єкта господарювання","Члена виконавчого органу суб’єкта господарювання призначено за результатами конкурсу (так/ні/не застосовується)","Дата призначення члена виконавчого органу суб’єкта господарювання 1","Строк дії повноважень члена виконавчого органу суб’єкта господарювання\n(років)","Дата закінчення повноважень члена виконавчого органу суб’єкта господарювання 2","Підстава припинення повноважень члена виконавчого органу суб’єкта господарювання 3"]
[1,{"$f":"A9+1","v":2},3,4,5,6,7,8,9,10,11,12,13,14,15,16,17,18]
[null,"Усього щодо суб'єкта управління (1 + 2), у тому числі за групами суб'єктів господарювання:","х","х",null,null,"х","х","х","х","загальна кількість \"Так\"","x","загальна кількість \"Так\"","x","x","x","x"]
[1,"державні унітарні підприємства – усього, у тому числі щодо окремих підприємств:","х","х",null,null,"х","х","х","х","загальна кількість \"Так\"","x","загальна кількість \"Так\"","x","x","x","x"]
["1.1."]
[2,"господарські товариства, у статутному капіталі яких більше 50 відсотків акцій (часток) належать державі – усього, у тому числі щодо окремих підприємств:","х","х",null,null,"х","х","х","х","загальна кількість \"Так\"","x","загальна кількість \"Так\"","x","x","x","x"]
["2.1. "]
[]
["* Інформація зазначається станом на останній день звітного кварталу (31 грудня звітного року), крім випадків, коли примітками нижче зазначено інше."]
["1 У графі 14 зазначається дата прийняття рішення про призначення члена виконавчого органу суб’єкта господарювання."]
["2 У графі 16 зазначається:"]
["для членів виконавчого органу суб’єкта господарювання, повноваження яких були дійсними у звітному періоді - дата закінчення терміну дії повноважень;"]
["для членів виконавчого органу суб’єкта господарювання, повноваження яких були припинені у звітному періоді - дата фактичного припинення повноважень. "]
["3 У графі 17 зазначається: розпорядчий документ щодо припинення повноважень члена виконавчого органу суб’єкта господарювання."]
["4 У графі 18 зазначається сума винагороди, виплачена за звітний період відповідному члену виконавчого органу суб’єкта господарювання, повноваження якого були дійсними у звітному періоді."]
[]
["_______________________________________________________________"]

{"sheet":"21 (спец обов)","index":20,"n_rows":20,"n_cols":17,"rows_kept":20,"merged":[[1,14,1,16],[3,0,3,16],[4,0,4,16],[6,0,7,0],[6,1,7,1],[6,2,7,2],[6,3,6,11],[6,12,6,16],[15,0,15,16],[19,0,19,16]]}
["          ",{"$nulls":13},"Додаток 21 "]
[{"$nulls":14},"до Методичних рекомендацій щодо здійснення контролю за виконанням функцій з управління об’єктами державної власності, узагальнення інформації про діяльність суб’єктів господарювання державного сектору економіки та наглядових рад суб’єктів господарювання державного сектору економіки та застосування критеріїв (оцінки) ефективності управління об’єктами державної власності  "]
[]
["ІНФОРМАЦІЯ *"]
["про спеціальні обов’язки, виконання яких покладено на суб’єктів господарювання державного сектору економіки, функції з управління якими або корпоративними правами держави у статутному капіталі \nяких виконує _________________, за _________ (період, рік)"]
[]
["№","Повне найменування суб’єкта господарювання державного сектору економіки (далі – суб'єкт господарювання)","Ідентифікаційний код","Інформація про покладення спеціальних обов'язків на суб’єкта господарювання",{"$nulls":8},"Інформація про виконання спеціальних обов'язків суб’єктом господарювання"]
[{"$nulls":3},"Назва спеціального обов'язку","Правові підстави для виконання спеціального обов’язку","Зміст та обсяг спеціального обов’язку","Категорії споживачів, яких стосується спеціальний обов’язок","Територія  виконання","Строк виконання","Суб’єкт господарювання є беззбитковим за звітній період \n(Так/Ні)","Джерела фінансування та порядок визначення компенсації, що надається суб’єкту господарювання ","Сума передбаченої компенсації, млн гривень","Виконано / не виконано (Так/Ні) 1","Запровадження окремого обліку витрат і доходів, активів і зобов’язань щодо виконання кожного із спеціальних обов’язків \n(Так/Ні)","Посилання на звітність, що містить окремий облік витрат і доходів, активів і зобов’язань щодо виконання спеціальних обов’язків","Сума отриманої компенсації, млн гривень","Докладніша інформація про стан виконання"]
[1,{"$f":"A9+1","v":2},{"$f":"B9+1","v":3},4,5,6,7,8,9,10,11,12,13,14,15,16,17]
[null,"Усього щодо суб'єкта управління (1 + 2), у тому числі за групами суб'єктів господарювання:","х","х","х","х","х","х","х","загальна кількість \"Так\"","х",null,"загальна кількість \"Так\"","загальна кількість \"Так\"","х",null,"х"]
[1,"державні унітарні підприємства – усього, у тому числі щодо окремих підприємств:","х","х","х","х","х","х","х","загальна кількість \"Так\"","х",null,"загальна кількість \"Так\"","загальна кількість \"Так\"","х",null,"х"]
["1.1."]
[2,"господарські товариства, у статутному капіталі яких більше 50 відсотків акцій (часток) належать державі – усього, у тому числі щодо окремих підприємств:","х","х","х","х","х","х","х","загальна кількість \"Так\"","х",null,"загальна кількість \"Так\"","загальна кількість \"Так\"","х",null,"х"]
["2.1. "]
[]
["* Цей додаток заповнюється для суб'єктів господарювання, в яких у додатку 1 у графі 15 (\"Суб'єкти господарювання, на яких покладено спеціальні обов’язки\") до Методичних рекомендацій щодо здійснення контролю за виконанням функцій з управління об’єктами державної власності, узагальнення інформації про діяльність суб’єктів господарювання державного сектору економіки та наглядових рад суб’єктів господарювання державного сектору економіки та застосування критеріїв (оцінки) ефективності управління об’єктами державної власності,  зазначено \"Так\"."]
["1 Дані у графі 13 зазначаються виключно у складі річної звітності відповідно до Щорічної оцінки досягнення суб'єктом господарювання державного сектору економіки поставлених цілей діяльності, визначених у листі очікувань власника суб’єкта господарювання."]
[]
[]
["_______________________________________________________________"]

{"sheet":"22 (страт пл)","index":21,"n_rows":20,"n_cols":101,"rows_kept":20,"merged":[[1,20,1,24],[3,0,3,24],[4,0,4,24],[6,0,8,0],[6,1,8,1],[6,2,8,2],[6,3,8,3],[6,4,8,4],[6,5,6,24],[6,25,6,32],[6,33,6,36],[6,37,6,64],[6,65,6,80],[6,81,6,100],[7,5,7,8],[7,9,7,12],[7,13,7,16],[7,17,7,20],[7,21,7,24],[7,25,7,28],[7,29,7,32],[7,33,7,36],[7,37,7,40],[7,41,7,44],[7,45,7,48],[7,49,7,52],[7,53,7,56],[7,57,7,60],[7,61,7,64],[7,65,7,68],[7,69,7,72],[7,73,7,76],[7,77,7,80],[7,81,7,84],[7,85,7,88],[7,89,7,92],[7,93,7,96],[7,97,7,100],[16,79,16,100],[17,79,17,100],[19,77,19,100]]}
["          ",{"$nulls":19},"Додаток 22"," ",{"$nulls":28},"Продовження додатка 22",{"$nulls":24},"Продовження додатка 22",{"$nulls":24},"Продовження додатка 22"]
[{"$nulls":20},"до Методичних рекомендацій щодо здійснення контролю за виконанням функцій з управління об’єктами державної власності, узагальнення інформації про діяльність суб’єктів господарювання державного сектору економіки та наглядових рад суб’єктів господарювання державного сектору економіки та застосування критеріїв (оцінки) ефективності управління об’єктами державної власності "]
[]
["УЗАГАЛЬНЕНА ІНФОРМАЦІЯ *"]
["про виконання стратегічних планів розвитку суб’єктів господарювання державного сектору економіки, функції з управління якими або корпоративними правами держави у статутному капіталі яких виконує _________________, за _________ (рік)"]
[]
["№","Повне найменування суб’єкта господарювання державного сектору економіки (далі – суб'єкт господарювання)","Ідентифікаційний код","Затверджено стратегічний план суб'єкта господарювання,                      так/ні","Дата затвердження стратегічного плану суб'єкта господарювання 1","1. Фінансова діяльність",{"$nulls":19},"2. Маркетингова діяльність",{"$nulls":7},"3. Виробнича діяльність",{"$nulls":3},"                                                                                                        4. Інвестиційна та інноваційна діяльність",{"$nulls":27},"5. Розвиток трудового потенціалу підприємства",{"$nulls":15},"6. Стан використання активів"]
[{"$nulls":5},"1.1. Чистий дохід від реалізації продукції (товарів, робіт, послуг),\nтис. гривень ",{"$nulls":3},"1.2. Валовий прибуток,\nтис. гривень",{"$nulls":3},"1.3. Чистий фінансовий результат,\nтис. гривень ",{"$nulls":3},"1.4. Валова рентабельність,\n%",{"$nulls":3},"1.5. Рентабельність діяльності,\n%",{"$nulls":3},"2.1. Обсяг реалізованої продукції на вітчизняному ринку,\nтис. гривень",{"$nulls":3},"2.2. Виручка від реалізації продукції на експорт,\nтис. гривень ",{"$nulls":3},"3.1. Рівень використання виробничих потужностей,\n%",{"$nulls":3},"4.1. Капітальні інвестиції усього, у тому числі за джерелами фінансування,\nтис. гривень",{"$nulls":3},"4.1.1. Кошти державного бюджету,\nтис. гривень",{"$nulls":3},"4.1.2. Власні кошти підприємства,\nтис. гривень",{"$nulls":3},"4.1.3. Залучені кошти,\nтис. гривень",{"$nulls":3},"4.2. Витрати на інновації,\nтис. гривень",{"$nulls":3},"4.3. Обсяг реалізованої інноваційної продукції,\nтис. гривень",{"$nulls":3},"4.4. Питома вага інноваційної продукції в загальному обсязі реалізованої продукції,\n%",{"$nulls":3},"5.1. Середньооблікова чисельність штатних працівників,\nосіб",{"$nulls":3},"5.2. Середньомісячна заробітна плата працівників,\nгривень",{"$nulls":3},"5.3. Продуктивність праці одного працюючого промислово-виробничого персоналу,\nтис. гривень/особу/міс",{"$nulls":3},"5.4. Питома вага працівників, які здійснюють науково-технічну діяльність,\n%",{"$nulls":3},"6.1. Активи усього, у тому числі:,\nтис. гривень",{"$nulls":3},"6.1.1. Оборотні активи,\nтис. гривень",{"$nulls":3},"6.1.2. Основні засоби (первісна вартість),\nтис. гривень",{"$nulls":3},"6.2. Коефіцієнт зносу основних засобів,\n%",{"$nulls":3},"6.3. Рентабельність активів,\n%"]
[{"$nulls":5},"План ","Факт ","Відхилення (факт - план), +/-","Виконання (факт/план), %","План ","Факт ","Відхилення (факт - план), +/-","Виконання (факт/план), %","План ","Факт ","Відхилення (факт - план), +/-","Виконання (факт/план), %","План ","Факт ","Відхилення (факт - план), +/-","Виконання (факт/план), %","План ","Факт ","Відхилення (факт - план), +/-","Виконання (факт/план), %","План ","Факт ","Відхилення (факт - план), +/-","Виконання (факт/план), %","План ","Факт ","Відхилення (факт - план), +/-","Виконання (факт/план), %","План ","Факт ","Відхилення (факт - план), +/-","Виконання (факт/план), %","План ","Факт ","Відхилення (факт - план), +/-","Виконання (факт/план), %","План ","Факт ","Відхилення (факт - план), +/-","Виконання (факт/план), %","План ","Факт ","Відхилення (факт - план), +/-","Виконання (факт/план), %","План ","Факт ","Відхилення (факт - план), +/-","Виконання (факт/план), %","План ","Факт ","Відхилення (факт - план), +/-","Виконання (факт/план), %","План ","Факт ","Відхилення (факт - план), +/-","Виконання (факт/план), %","План ","Факт ","Відхилення (факт - план), +/-","Виконання (факт/план), %","План ","Факт ","Відхилення (факт - план), +/-","Виконання (факт/план), %","План ","Факт ","Відхилення (факт - план), +/-","Виконання (факт/план), %","План ","Факт ","Відхилення (факт - план), +/-","Виконання (факт/план), %","План ","Факт ","Відхилення (факт - план), +/-","Виконання (факт/план), %","План ","Факт ","Відхилення (факт - план), +/-","Виконання (факт/план), %","План ","Факт ","Відхилення (факт - план), +/-","Виконання (факт/план), %","План ","Факт ","Відхилення (факт - план), +/-","Виконання (факт/план), %","План ","Факт ","Відхилення (факт - план), +/-","Виконання (факт/план), %","План ","Факт ","Відхилення (факт - план), +/-","Виконання (факт/план), %"]
[1,2,{"$f":"B10+1","v":3},{"$f":"C10+1","v":4},{"$f":"D10+1","v":5},{"$f":"E10+1","v":6},{"$f":"F10+1","v":7},{"$f":"G10+1","v":8},{"$f":"H10+1","v":9},{"$f":"I10+1","v":10},{"$f":"J10+1","v":11},{"$f":"K10+1","v":12},{"$f":"L10+1","v":13},{"$f":"M10+1","v":14},{"$f":"N10+1","v":15},{"$f":"O10+1","v":16},{"$f":"P10+1","v":17},{"$f":"Q10+1","v":18},{"$f":"R10+1","v":19},{"$f":"S10+1","v":20},{"$f":"T10+1","v":21},{"$f":"U10+1","v":22},{"$f":"V10+1","v":23},{"$f":"W10+1","v":24},{"$f":"X10+1","v":25},{"$f":"Y10+1","v":26},{"$f":"Z10+1","v":27},{"$f":"AA10+1","v":28},{"$f":"AB10+1","v":29},{"$f":"AC10+1","v":30},{"$f":"AD10+1","v":31},{"$f":"AE10+1","v":32},{"$f":"AF10+1","v":33},{"$f":"AG10+1","v":34},{"$f":"AH10+1","v":35},{"$f":"AI10+1","v":36},{"$f":"AJ10+1","v":37},{"$f":"AK10+1","v":38},{"$f":"AL10+1","v":39},{"$f":"AM10+1","v":40},{"$f":"AN10+1","v":41},{"$f":"AO10+1","v":42},{"$f":"AP10+1","v":43},{"$f":"AQ10+1","v":44},{"$f":"AR10+1","v":45},{"$f":"AS10+1","v":46},{"$f":"AT10+1","v":47},{"$f":"AU10+1","v":48},{"$f":"AV10+1","v":49},{"$f":"AW10+1","v":50},{"$f":"AX10+1","v":51},{"$f":"AY10+1","v":52},{"$f":"AZ10+1","v":53},{"$f":"BA10+1","v":54},{"$f":"BB10+1","v":55},{"$f":"BC10+1","v":56},{"$f":"BD10+1","v":57},{"$f":"BE10+1","v":58},{"$f":"BF10+1","v":59},{"$f":"BG10+1","v":60},{"$f":"BH10+1","v":61},{"$f":"BI10+1","v":62},{"$f":"BJ10+1","v":63},{"$f":"BK10+1","v":64},{"$f":"BL10+1","v":65},{"$f":"BM10+1","v":66},{"$f":"BN10+1","v":67},{"$f":"BO10+1","v":68},{"$f":"BP10+1","v":69},{"$f":"BQ10+1","v":70},{"$f":"BR10+1","v":71},{"$f":"BS10+1","v":72},{"$f":"BT10+1","v":73},{"$f":"BU10+1","v":74},{"$f":"BV10+1","v":75},{"$f":"BW10+1","v":76},{"$f":"BX10+1","v":77},{"$f":"BY10+1","v":78},{"$f":"BZ10+1","v":79},{"$f":"CA10+1","v":80},{"$f":"CB10+1","v":81},{"$f":"CC10+1","v":82},{"$f":"CD10+1","v":83},{"$f":"CE10+1","v":84},{"$f":"CF10+1","v":85},{"$f":"CG10+1","v":86},{"$f":"CH10+1","v":87},{"$f":"CI10+1","v":88},{"$f":"CJ10+1","v":89},{"$f":"CK10+1","v":90},{"$f":"CL10+1","v":91},{"$f":"CM10+1","v":92},{"$f":"CN10+1","v":93},{"$f":"CO10+1","v":94},{"$f":"CP10+1","v":95},{"$f":"CQ10+1","v":96},{"$f":"CR10+1","v":97},{"$f":"CS10+1","v":98},{"$f":"CT10+1","v":99},{"$f":"CU10+1","v":100},{"$f":"CV10+1","v":101}]
[null,"Усього щодо суб'єкта управління (1 + 2), у тому числі за групами суб'єктів господарювання:","х","загальна кількість \"Так\"","x",null,null,{"$f":"G11-F11","v":0},{"$f":"(G11/F11)*100","v":{"$error":"#DIV/0!"}},null,null,{"$f":"K11-J11","v":0},{"$f":"(K11/J11)*100","v":{"$error":"#DIV/0!"}},null,null,{"$f":"O11-N11","v":0},{"$f":"(O11/N11)*100","v":{"$error":"#DIV/0!"}},null,null,{"$f":"S11-R11","v":0},{"$f":"(S11/R11)*100","v":{"$error":"#DIV/0!"}},null,null,{"$f":"W11-V11","v":0},{"$f":"(W11/V11)*100","v":{"$error":"#DIV/0!"}},null,null,{"$f":"AA11-Z11","v":0},{"$f":"(AA11/Z11)*100","v":{"$error":"#DIV/0!"}},null,null,{"$f":"AE11-AD11","v":0},{"$f":"(AE11/AD11)*100","v":{"$error":"#DIV/0!"}},null,null,{"$f":"AI11-AH11","v":0},{"$f":"(AI11/AH11)*100","v":{"$error":"#DIV/0!"}},null,null,{"$f":"AM11-AL11","v":0},{"$f":"(AM11/AL11)*100","v":{"$error":"#DIV/0!"}},null,null,{"$f":"AQ11-AP11","v":0},{"$f":"(AQ11/AP11)*100","v":{"$error":"#DIV/0!"}},null,null,{"$f":"AU11-AT11","v":0},{"$f":"(AU11/AT11)*100","v":{"$error":"#DIV/0!"}},null,null,{"$f":"AY11-AX11","v":0},{"$f":"(AY11/AX11)*100","v":{"$error":"#DIV/0!"}},null,null,{"$f":"BC11-BB11","v":0},{"$f":"(BC11/BB11)*100","v":{"$error":"#DIV/0!"}},null,null,{"$f":"BG11-BF11","v":0},{"$f":"(BG11/BF11)*100","v":{"$error":"#DIV/0!"}},null,null,{"$f":"BK11-BJ11","v":0},{"$f":"(BK11/BJ11)*100","v":{"$error":"#DIV/0!"}},null,null,{"$f":"BO11-BN11","v":0},{"$f":"(BO11/BN11)*100","v":{"$error":"#DIV/0!"}},null,null,{"$f":"BS11-BR11","v":0},{"$f":"(BS11/BR11)*100","v":{"$error":"#DIV/0!"}},null,null,{"$f":"BW11-BV11","v":0},{"$f":"(BW11/BV11)*100","v":{"$error":"#DIV/0!"}},null,null,{"$f":"CA11-BZ11","v":0},{"$f":"(CA11/BZ11)*100","v":{"$error":"#DIV/0!"}},null,null,{"$f":"CE11-CD11","v":0},{"$f":"(CE11/CD11)*100","v":{"$error":"#DIV/0!"}},null,null,{"$f":"CI11-CH11","v":0},{"$f":"(CI11/CH11)*100","v":{"$error":"#DIV/0!"}},null,null,{"$f":"CM11-CL11","v":0},{"$f":"(CM11/CL11)*100","v":{"$error":"#DIV/0!"}},null,null,{"$f":"CQ11-CP11","v":0},{"$f":"(CQ11/CP11)*100","v":{"$error":"#DIV/0!"}},null,null,{"$f":"CU11-CT11","v":0},{"$f":"(CU11/CT11)*100","v":{"$error":"#DIV/0!"}}]
[1,"державні унітарні підприємства – усього, у тому числі щодо окремих підприємств:","х","загальна кількість \"Так\"","x",null,null,{"$f":"G12-F12","v":0},{"$f":"(G12/F12)*100","v":{"$error":"#DIV/0!"}},null,null,{"$f":"K12-J12","v":0},{"$f":"(K12/J12)*100","v":{"$error":"#DIV/0!"}},null,null,{"$f":"O12-N12","v":0},{"$f":"(O12/N12)*100","v":{"$error":"#DIV/0!"}},null,null,{"$f":"S12-R12","v":0},{"$f":"(S12/R12)*100","v":{"$error":"#DIV/0!"}},null,null,{"$f":"W12-V12","v":0},{"$f":"(W12/V12)*100","v":{"$error":"#DIV/0!"}},null,null,{"$f":"AA12-Z12","v":0},{"$f":"(AA12/Z12)*100","v":{"$error":"#DIV/0!"}},null,null,{"$f":"AE12-AD12","v":0},{"$f":"(AE12/AD12)*100","v":{"$error":"#DIV/0!"}},null,null,{"$f":"AI12-AH12","v":0},{"$f":"(AI12/AH12)*100","v":{"$error":"#DIV/0!"}},null,null,{"$f":"AM12-AL12","v":0},{"$f":"(AM12/AL12)*100","v":{"$error":"#DIV/0!"}},null,null,{"$f":"AQ12-AP12","v":0},{"$f":"(AQ12/AP12)*100","v":{"$error":"#DIV/0!"}},null,null,{"$f":"AU12-AT12","v":0},{"$f":"(AU12/AT12)*100","v":{"$error":"#DIV/0!"}},null,null,{"$f":"AY12-AX12","v":0},{"$f":"(AY12/AX12)*100","v":{"$error":"#DIV/0!"}},null,null,{"$f":"BC12-BB12","v":0},{"$f":"(BC12/BB12)*100","v":{"$error":"#DIV/0!"}},null,null,{"$f":"BG12-BF12","v":0},{"$f":"(BG12/BF12)*100","v":{"$error":"#DIV/0!"}},null,null,{"$f":"BK12-BJ12","v":0},{"$f":"(BK12/BJ12)*100","v":{"$error":"#DIV/0!"}},null,null,{"$f":"BO12-BN12","v":0},{"$f":"(BO12/BN12)*100","v":{"$error":"#DIV/0!"}},null,null,{"$f":"BS12-BR12","v":0},{"$f":"(BS12/BR12)*100","v":{"$error":"#DIV/0!"}},null,null,{"$f":"BW12-BV12","v":0},{"$f":"(BW12/BV12)*100","v":{"$error":"#DIV/0!"}},null,null,{"$f":"CA12-BZ12","v":0},{"$f":"(CA12/BZ12)*100","v":{"$error":"#DIV/0!"}},null,null,{"$f":"CE12-CD12","v":0},{"$f":"(CE12/CD12)*100","v":{"$error":"#DIV/0!"}},null,null,{"$f":"CI12-CH12","v":0},{"$f":"(CI12/CH12)*100","v":{"$error":"#DIV/0!"}},null,null,{"$f":"CM12-CL12","v":0},{"$f":"(CM12/CL12)*100","v":{"$error":"#DIV/0!"}},null,null,{"$f":"CQ12-CP12","v":0},{"$f":"(CQ12/CP12)*100","v":{"$error":"#DIV/0!"}},null,null,{"$f":"CU12-CT12","v":0},{"$f":"(CU12/CT12)*100","v":{"$error":"#DIV/0!"}}]
["1.1.",{"$nulls":6},0,{"$error":"#DIV/0!"},null,null,0,{"$error":"#DIV/0!"},null,null,0,{"$error":"#DIV/0!"},null,null,0,{"$error":"#DIV/0!"},null,null,0,{"$error":"#DIV/0!"},null,null,0,{"$error":"#DIV/0!"},null,null,0,{"$error":"#DIV/0!"},null,null,0,{"$error":"#DIV/0!"},null,null,0,{"$error":"#DIV/0!"},null,null,0,{"$error":"#DIV/0!"},null,null,0,{"$error":"#DIV/0!"},null,null,0,{"$error":"#DIV/0!"},null,null,0,{"$error":"#DIV/0!"},null,null,0,{"$error":"#DIV/0!"},null,null,0,{"$error":"#DIV/0!"},null,null,0,{"$error":"#DIV/0!"},null,null,0,{"$error":"#DIV/0!"},null,null,0,{"$error":"#DIV/0!"},null,null,0,{"$error":"#DIV/0!"},null,null,0,{"$error":"#DIV/0!"},null,null,0,{"$error":"#DIV/0!"},null,null,0,{"$error":"#DIV/0!"},null,null,0,{"$error":"#DIV/0!"},null,null,0,{"$error":"#DIV/0!"}]
[2,"господарські товариства, у статутному капіталі яких більше 50 відсотків акцій (часток) належать державі – усього, у тому числі щодо окремих підприємств:","х","загальна кількість \"Так\"","x",null,null,0,{"$error":"#DIV/0!"},null,null,0,{"$error":"#DIV/0!"},null,null,0,{"$error":"#DIV/0!"},null,null,0,{"$error":"#DIV/0!"},null,null,0,{"$error":"#DIV/0!"},null,null,0,{"$error":"#DIV/0!"},null,null,0,{"$error":"#DIV/0!"},null,null,0,{"$error":"#DIV/0!"},null,null,0,{"$error":"#DIV/0!"},null,null,0,{"$error":"#DIV/0!"},null,null,0,{"$error":"#DIV/0!"},null,null,0,{"$error":"#DIV/0!"},null,null,0,{"$error":"#DIV/0!"},null,null,0,{"$error":"#DIV/0!"},null,null,0,{"$error":"#DIV/0!"},null,null,0,{"$error":"#DIV/0!"},null,null,0,{"$error":"#DIV/0!"},null,null,0,{"$error":"#DIV/0!"},null,null,0,{"$error":"#DIV/0!"},null,null,0,{"$error":"#DIV/0!"},null,null,0,{"$error":"#DIV/0!"},null,null,0,{"$error":"#DIV/0!"},null,null,0,{"$error":"#DIV/0!"},null,null,0,{"$error":"#DIV/0!"}]
["2.1. ",{"$nulls":6},0,{"$error":"#DIV/0!"},null,null,0,{"$error":"#DIV/0!"},null,null,0,{"$error":"#DIV/0!"},null,null,0,{"$error":"#DIV/0!"},null,null,0,{"$error":"#DIV/0!"},null,null,0,{"$error":"#DIV/0!"},null,null,0,{"$error":"#DIV/0!"},null,null,0,{"$error":"#DIV/0!"},null,null,0,{"$error":"#DIV/0!"},null,null,0,{"$error":"#DIV/0!"},null,null,0,{"$error":"#DIV/0!"},null,null,0,{"$error":"#DIV/0!"},null,null,0,{"$error":"#DIV/0!"},null,null,0,{"$error":"#DIV/0!"},null,null,0,{"$error":"#DIV/0!"},null,null,0,{"$error":"#DIV/0!"},null,null,0,{"$error":"#DIV/0!"},null,null,0,{"$error":"#DIV/0!"},null,null,0,{"$error":"#DIV/0!"},null,null,0,{"$error":"#DIV/0!"},null,null,0,{"$error":"#DIV/0!"},null,null,0,{"$error":"#DIV/0!"},null,null,0,{"$error":"#DIV/0!"},null,null,0,{"$error":"#DIV/0!"}]
[]
[{"$nulls":79},"* Показники заповнюються із звітів про виконання стратегічного плану розвитку суб’єктів господарювання, складених відповідно до наказу Мінекономіки від 01.09.2022 № 2897 \"Про затвердження форм та Порядку подання і затвердження стратегічного плану розвитку, звіту про виконання стратегічного плану розвитку та інформації про затвердження стратегічних планів розвитку суб’єктів господарювання державного сектору економіки та їх виконання\""]
[{"$nulls":79},"1 У графі 5 зазначається дата затвердження основного стратегічного плану суб'єкта господарювання звітного року."]
[]
[{"$nulls":77},"_______________________________________________________________"]

{"sheet":"23 (розподіл)","index":22,"n_rows":22,"n_cols":11,"rows_kept":22,"merged":[[1,9,1,10],[3,0,3,10],[4,0,4,10],[6,0,7,0],[6,1,7,1],[6,2,7,2],[6,3,7,3],[6,4,6,8],[6,9,7,9],[6,10,7,10],[17,0,17,10],[19,0,19,10],[20,0,20,10],[21,0,21,10]]}
["          ",{"$nulls":8},"Додаток 23"]
[{"$nulls":9},"до Методичних рекомендацій щодо здійснення контролю за виконанням функцій з управління об’єктами державної власності, узагальнення інформації про діяльність суб’єктів господарювання державного сектору економіки та наглядових рад суб’єктів господарювання державного сектору економіки та застосування критеріїв (оцінки) ефективності управління об’єктами державної власності   "]
[]
["ІНФОРМАЦІЯ ПРО ОБҐРУНТУВАННЯ ЗАЛИШЕННЯ У ДЕРЖАВНІЙ ВЛАСНОСТІ"]
["суб’єктів господарювання державного сектору економіки, функції з управління якими або корпоративними правами держави у статутному капіталі яких виконує _________________, за _________ (рік)"]
[]
["№","Повне найменування суб’єкта господарювання державного сектору економіки (далі – суб'єкт господарювання)","Ідентифікаційний код","Розподіл суб’єктів господарювання за категоріями (Категорія 1 / Категорія 2 / Категорія 3 / Категорія 4) 1","Підстави залишення суб’єкта господарювання у державній власності для категорій суб'єктів господарювання \"НЕП\", \"ВС\" та \"Р\", зазначених у графі 4",{"$nulls":4},"Вказати назви, номери та дати прийняття нормативно-правових актів, відповідно до яких суб'єкт господарювання  залишається у державній власності, графи 4-9","Обґрунтування залишення суб’єкта господарювання у державній власності"]
[{"$nulls":4},"Участь підприємств, товариств з корпоративними правами держави у виробництві товарів, виконанні робіт та наданні послуг у сферах, де суб’єкти господарювання приватного сектору економіки не можуть здійснювати це ефективно \n(Так/Ні) 2","Належність підприємства, товариства з корпоративними правами держави до суб’єктів природних монополій \n(Так/Ні) 2","Забезпечення національної безпеки та обороноздатності України шляхом володіння та управління підприємством, корпоративними правами держави \n(Так/Ні) 2","Виконання підприємством, товариством з корпоративними правами держави цілей державної політики, передбачених статтею 4 Закону України “Про приватизацію державного і комунального майна”, зі змінами, та іншими законами України, якими встановлена заборона на приватизацію об’єктів державної власності \n(Так/Ні) 2","Тимчасове, до припинення або скасування правового режиму воєнного стану, володіння державою корпоративними правами держави у статутних капіталах господарських товариств, набутими у власність відповідно до Законів України “Про санкції”, зі змінами, “Про основні засади примусового вилучення в Україні об’єктів права власності Російської Федерації та її резидентів”, зі змінами, у разі, коли майно відповідного товариства з корпоративними правами держави становить матеріальну основу суверенітету України або таке товариство виробляє товари для забезпечення обороноздатності держави \n(Так/Ні) 2"]
[1,{"$f":"A9+1","v":2},3,4,5,6,7,8,9,10,11]
[null,"Усього щодо суб'єкта управління (1 + 2), у тому числі за групами суб'єктів господарювання:","х","х","загальна кількість \"Так\"","загальна кількість \"Так\"","загальна кількість \"Так\"","загальна кількість \"Так\"","загальна кількість \"Так\"","х","х"]
[1,"державні унітарні підприємства – усього, у тому числі щодо окремих підприємств:","х","х","загальна кількість \"Так\"","загальна кількість \"Так\"","загальна кількість \"Так\"","загальна кількість \"Так\"","загальна кількість \"Так\"","х","х"]
["1.1."]
[2,"господарські товариства, у статутному капіталі яких більше 50 відсотків акцій (часток) належать державі – усього, у тому числі щодо окремих підприємств:","х","х","загальна кількість \"Так\"","загальна кількість \"Так\"","загальна кількість \"Так\"","загальна кількість \"Так\"","загальна кількість \"Так\"","х","х"]
["2.1. "]
[]
["1 Відповідно до результатів категоризації згідно з пунктом 21 Політики державної власності, затвердженої постановою Кабінету Міністрів України від 29.11.2024 № 1369 \"Деякі питання Політики державної власності\" (далі – Політика державної власності), обирається одне із наступних значень:"]
["   Категорія 1: підприємства, товариства з корпоративними правами держави, які не підлягають приватизації, згідно переліку, що затверджується Верховною Радою України відповідно до вимог Закону України «Про приватизацію державного і комунального майна», зі змінами,  (НЕП);"]
["   Категорія 2: підприємства, товариства з корпоративними правами держави, необхідні для забезпечення обороноздатності держави, які залишаються в державній власності на період дії правового режиму воєнного стану, приватизація яких може бути проведена після його припинення або скасування (ВС);"]
["   Категорія 3: підприємства, товариства з корпоративними правами держави, які повинні бути приватизовані чи ліквідовані або щодо яких застосовуються обидва таких способи (ПЛ);"]
["   Категорія 4: підприємства, товариства з корпоративними правами держави, які підлягають реорганізації та/або щодо яких вживаються інші заходи з метою відокремлення видів діяльності, які підпадають під причини залишення підприємства, корпоративних прав держави в державній власності, від інших видів діяльності (Р)."]
["2 Терміни \"підприємства\", \"товариства з корпоративними правами держави\" вживаються в значеннях, наведених у пункті 2 Політики державної власності."]
["_______________________________________________________________"]

{"sheet":"24 (активи)","index":23,"n_rows":17,"n_cols":41,"rows_kept":17,"merged":[[1,17,1,20],[3,0,3,20],[4,0,4,20],[6,0,8,0],[6,1,8,1],[6,2,8,2],[6,3,6,4],[6,5,6,6],[6,7,6,8],[6,9,6,10],[6,11,6,12],[6,13,6,14],[6,15,6,16],[6,17,6,18],[6,19,6,20],[6,21,6,22],[6,23,6,24],[6,25,6,26],[6,27,6,28],[6,29,6,30],[6,31,6,32],[6,33,6,34],[6,35,6,36],[6,37,6,40],[7,3,8,3],[7,4,8,4],[7,5,8,5],[7,6,8,6],[7,7,8,7],[7,8,8,8],[7,9,8,9],[7,10,8,10],[7,11,8,11],[7,12,8,12],[7,13,8,13],[7,14,8,14],[7,15,8,15],[7,16,8,16],[7,17,8,17],[7,18,8,18],[7,19,8,19],[7,20,8,20],[7,21,8,21],[7,22,8,22],[7,23,8,23],[7,24,8,24],[7,25,8,25],[7,26,8,26],[7,27,8,27],[7,28,8,28],[7,29,8,29],[7,30,8,30],[7,31,8,31],[7,32,8,32],[7,33,8,33],[7,34,8,34],[7,35,8,35],[7,36,8,36],[7,37,7,38],[7,39,7,40],[16,21,16,40]]}
["          ",{"$nulls":16},"Додаток 24 ",{"$nulls":22},"Продовження додатка 24"]
[{"$nulls":17},"до Методичних рекомендацій щодо здійснення контролю за виконанням функцій з управління об’єктами державної власності, узагальнення інформації про діяльність суб’єктів господарювання державного сектору економіки та наглядових рад суб’єктів господарювання державного сектору економіки та застосування критеріїв (оцінки) ефективності управління об’єктами державної власності "]
[]
["ПОКАЗНИКИ"]
["стану активів суб’єктів господарювання державного сектору економіки, функції з управління якими або корпоративними правами держави у статутному капіталі яких виконує _______________, за _______ (період, рік)"]
[]
["№","Повне найменування суб’єкта господарювання державного сектору економіки (далі – суб'єкт господарювання)","Ідентифікаційний код","Загальна вартість активів, тис. гривень",null,"Необоротні активи, \nтис. гривень",null,"Первісна вартість основних засобів, \nтис. гривень",null,"Знос основних засобів, тис. гривень",null,"Ступінь зносу основних засобів, %",null,"Оборотні активи, \nтис. гривень",null,"Запаси, \nтис. гривень",null,"Дебіторська заборгованість, \nтис. гривень",null,"Дебіторська заборгованість за продукцію, товари, роботи, послуги, \nтис. гривень",null,"Грошові кошти та їх еквіваленти, \nтис. гривень",null,"Поточні фінансові інвестиції, \nтис. гривень",null,"Власний капітал, \nтис. гривень",null,"Довгострокові зобов'язання і забезпечення, \nтис. гривень",null,"Довгострокові кредити банків, \nтис. гривень",null,"Поточні зобов'язання і забезпечення, \nтис. гривень",null,"Короткострокові кредити банків, \nтис. гривень",null,"Кредиторська заборгованість за товари, роботи, послуги, \nтис. гривень",null,"Кредиторська заборгованість, \nтис. гривень"]
[{"$nulls":3},"на початок звітного періоду (форма № 1, рядок 1300, графа 3)","на кінець звітного періоду (форма № 1, рядок 1300, графа 4)","на початок звітного періоду (форма № 1, рядок 1095, графа 3)","на кінець звітного періоду (форма № 1, рядок 1095, графа 4)","на початок звітного періоду (форма № 1, рядок 1011, графа 3)","на кінець звітного періоду (форма № 1, рядок 1011, графа 4)","на початок звітного періоду (форма № 1, рядок 1012, графа 3)","на кінець звітного періоду (форма № 1, рядок 1012, графа 4)","на початок звітного періоду\n (форма № 1, рядок 1012, графа 3) * 100 /  (форма № 1, рядок 1011, графа 3)","на кінець звітного періоду\n (форма № 1, рядок 1012, графа 4) * 100 /  (форма № 1, рядок 1011, графа 4)","на початок звітного періоду (форма № 1, рядок 1195, графа 3)","на кінець звітного періоду (форма № 1, рядок 1195, графа 4)","на початок періоду (форма № 1, рядок 1100, графа 3)","на кінець періоду (форма № 1, рядок 1100, графа 4)","на початок звітного періоду  (форма № 1, рядок 1040 + 1120 + 1125 + 1130 + 1135 + 1140 + 1145 + 1155, графа 3)","на кінець звітного періоду  (форма        № 1, рядок 1040 + 1120 + 1125 + 1130 + 1135 + 1140 + 1145 + 1155, графа 4)","на початок періоду (форма № 1, рядок 1125, графа 3)","на кінець періоду (форма № 1, рядок 1125, графа 4)","на початок періоду (форма № 1, рядок 1165, графа 3)","на кінець періоду (форма № 1, рядок 1165, графа 4)","на початок періоду (форма № 1, рядок 1160, графа 3)","на кінець періоду (форма № 1, рядок 1160, графа 4)","на початок періоду (форма № 1, рядок 1495, графа 3)","на кінець періоду (форма № 1, рядок 1495, графа 4)","на початок періоду (форма № 1, рядок 1595, графа 3)","на кінець періоду (форма № 1, рядок 1595, графа 4)","на початок періоду (форма № 1, рядок 1510, графа 3)","на кінець періоду (форма № 1, рядок 1510, графа 4)","на початок періоду (форма № 1, рядок 1695, графа 3)","на кінець періоду (форма № 1, рядок 1695, графа 4)","на початок періоду (форма № 1, рядок 1600, графа 3)","на кінець періоду (форма № 1, рядок 1600, графа 4)","на початок періоду (форма № 1, рядок 1615, графа 3)","на кінець періоду (форма № 1, рядок 1615, графа 4)","усього",null,"у тому числі довгострокові зобов'язання"]
[{"$nulls":37},"на початок звітного періоду (форма № 1, рядок 1510 + 1515 + (1695 - 1660 - 1665 - 1670), графа 3)","на кінець звітного періоду (форма № 1, рядок 1510 + 1515 + (1695 - 1660 - 1665 - 1670), графа 4)","на початок звітного періоду (форма  № 1, рядок 1510 + 1515, графа 3)","на кінець звітного періоду (форма   № 1, рядок 1510 + 1515, графа 4)"]
[1,2,3,4,5,6,7,8,9,10,11,12,13,14,15,16,17,18,19,20,21,22,23,24,25,26,27,28,29,30,31,32,33,34,35,36,37,38,39,40,41]
[null,"Усього щодо суб'єкта управління (1 + 2), у тому числі за групами суб'єктів господарювання:","х",{"$nulls":8},{"$f":"J11*100/H11","v":{"$error":"#DIV/0!"}},{"$f":"K11*100/I11","v":{"$error":"#DIV/0!"}}]
[1,"державні унітарні підприємства – усього, у тому числі щодо окремих підприємств:","х",{"$nulls":8},{"$f":"J12*100/H12","v":{"$error":"#DIV/0!"}},{"$error":"#DIV/0!"}]
["1.1.",{"$nulls":10},{"$f":"J13*100/H13","v":{"$error":"#DIV/0!"}},{"$error":"#DIV/0!"}]
[2,"господарські товариства, у статутному капіталі яких більше 50 відсотків акцій (часток) належать державі – усього, у тому числі щодо окремих підприємств:","х",{"$nulls":8},{"$error":"#DIV/0!"},{"$error":"#DIV/0!"}]
["2.1. ",{"$nulls":10},{"$error":"#DIV/0!"},{"$error":"#DIV/0!"}]
[]
[{"$nulls":21},"_______________________________________________________________"]

{"sheet":"25 (фін рез)","index":24,"n_rows":16,"n_cols":23,"rows_kept":16,"merged":[[1,8,1,10],[3,0,3,10],[4,0,4,10],[6,0,7,0],[6,1,7,1],[6,2,7,2],[6,3,6,4],[6,5,6,6],[6,7,6,8],[6,9,6,10],[6,11,6,12],[6,13,6,14],[6,15,6,16],[6,17,6,18],[6,19,6,20],[6,21,6,22],[15,11,15,22]]}
["          ",{"$nulls":7},"Додаток 25 ",{"$nulls":13},"Продовження додатка 25"]
[{"$nulls":8},"до Методичних рекомендацій щодо здійснення контролю за виконанням функцій з управління об’єктами державної власності, узагальнення інформації про діяльність суб’єктів господарювання державного сектору економіки та наглядових рад суб’єктів господарювання державного сектору економіки та застосування критеріїв (оцінки) ефективності управління об’єктами державної власності "]
[]
["ПОКАЗНИКИ "]
["фінансово-господарської діяльності суб’єктів господарювання державного сектору економіки, функції з управління якими або корпоративними правами держави у статутному капіталі яких виконує ______________, за _______ (період, рік)"]
[]
["№","Повне найменування суб’єкта господарювання державного сектору економіки (далі – суб'єкт господарювання)","Ідентифікаційний код","Чистий дохід від реалізації продукції (товарів, робіт, послуг),\nтис. гривень",null,"Собівартість реалізованої продукції (товарів, робіт, послуг), \nтис. гривень",null,"Валовий прибуток (збиток), \nтис. гривень",null,"Адміністративні витрати, \nтис. гривень",null,"Витрати на збут, \nтис. гривень",null,"Інші операційні витрати, \nтис. гривень",null,"Фінансовий результат від операційної діяльності, \nтис. гривень",null,"Фінансові витрати, \nтис. гривень",null,"Чистий фінансовий результат, тис. гривень",null,"Амортизація, \nтис. гривень"]
[{"$nulls":3},"за звітний період (форма № 2, рядок 2000, графа 3)","за відповідний період минулого року (форма № 2, рядок 2000, графа 4)","за звітний період (форма № 2, рядок 2050, графа 3)","за відповідний період минулого року (форма № 2, рядок 2050, графа 4)","за звітний період (форма № 2, рядок 2090 (2095), графа 3)","за відповідний період минулого року (форма № 2, рядок 2090 (2095), графа 4)","за звітний період (форма № 2, рядок 2130, графа 3)","за відповідний період минулого року (форма № 2, рядок 2130, графа 4)","за звітний період (форма № 2, рядок 2150, графа 3)","за відповідний період минулого року (форма № 2, рядок 2150, графа 4)","за звітний період (форма № 2, рядок 2180, графа 3)","за відповідний період минулого року (форма № 2, рядок 2180, графа 4)","за звітний період (форма № 2, рядок 2190 (2195), графа 3)","за відповідний період минулого року (форма № 2, рядок 2190 (2195), графа 4)","за звітний період (форма № 2, рядок 2250, графа 3)","за відповідний період минулого року (форма № 2, рядок 2250, графа 4)","за звітний період (форма № 2, рядок 2350 (2355), графа 3)","за відповідний період минулого року (форма № 2, рядок 2350 (2355), графа 4)","за звітний період (форма № 2, рядок 2515, графа 3)","за відповідний період минулого року (форма № 2, рядок 2515, графа 4)"]
[1,{"$f":"A9+1","v":2},3,4,5,6,7,8,9,10,11,12,13,14,15,16,17,18,19,20,21,22,23]
[null,"Усього щодо суб'єкта управління (1 + 2), у тому числі за групами суб'єктів господарювання:","х"]
[1,"державні унітарні підприємства – усього, у тому числі щодо окремих підприємств:","х"]
["1.1."]
[2,"господарські товариства, у статутному капіталі яких більше 50 відсотків акцій (часток) належать державі – усього, у тому числі щодо окремих підприємств:","х"]
["2.1. "]
[]
[{"$nulls":11},"_______________________________________________________________"]

{"sheet":"26 (штат)","index":25,"n_rows":22,"n_cols":14,"rows_kept":22,"merged":[[1,11,1,13],[3,0,3,13],[4,0,4,13],[6,0,7,0],[6,1,7,1],[6,2,7,2],[6,3,6,5],[6,6,6,7],[6,8,6,10],[6,11,6,13],[15,0,15,13],[16,0,16,13],[17,0,17,13],[18,0,18,13],[19,0,19,13],[21,0,21,13]]}
["          ",{"$nulls":10},"Додаток 26"]
[{"$nulls":11},"до Методичних рекомендацій щодо здійснення контролю за виконанням функцій з управління об’єктами державної власності, узагальнення інформації про діяльність суб’єктів господарювання державного сектору економіки та наглядових рад суб’єктів господарювання державного сектору економіки та застосування критеріїв (оцінки) ефективності управління об’єктами державної власності   "]
[]
["СОЦІАЛЬНО-ЕКОНОМІЧНІ ПОКАЗНИКИ"]
[" діяльності суб'єктів господарювання державного сектору економіки, функції з управління якими або корпоративними правами держави у статутному капіталі яких виконує ________________, за ________ (період, рік)"]
[]
["№","Повне найменування суб’єкта господарювання державного сектору економіки (далі – суб'єкт господарювання)","Ідентифікаційний код"," Середньооблікова кількість штатних працівників, осіб",null,null,"Фонд оплати праці штатних працівників, тис. гривень 2",null," Середньомісячна заробітна плата штатних працівників, гривень 3",null,null," Сума заборгованості з виплати заробітної плати, тис. гривень"]
[{"$nulls":3},"за звітний період 1 ","за відповідний період минулого року 1 ","темп зміни \n(графа 4 х 100 / графа 5)","за звітний період","за відповідний період минулого року","за звітний період ","за відповідний період минулого року ","темп зміни\nграфа 7 х 100 / графа 8)","за звітний період (форма № 3-борг (місячна), рядок 2010, графа 1) 4","за відповідний період минулого року (форма № 3-борг (місячна), рядок 2010, графа 1) 4","темп зміни \n(графа 10 х 100 / графа 11)"]
[1,{"$f":"A9+1","v":2},3,4,5,6,7,8,9,10,11,12,13,14]
[null,"Усього щодо суб'єкта управління (1 + 2), у тому числі за групами суб'єктів господарювання:","х",null,null,{"$f":"D10*100/E10","v":{"$error":"#DIV/0!"}},{"$nulls":4},{"$f":"I10*100/J10","v":{"$error":"#DIV/0!"}},null,null,{"$f":"L10*100/M10","v":{"$error":"#DIV/0!"}}]
[1,"державні унітарні підприємства – усього, у тому числі щодо окремих підприємств:","х",null,null,{"$f":"D11*100/E11","v":{"$error":"#DIV/0!"}},{"$nulls":4},{"$f":"I11*100/J11","v":{"$error":"#DIV/0!"}},null,null,{"$f":"L11*100/M11","v":{"$error":"#DIV/0!"}}]
["1.1.",{"$nulls":4},{"$f":"D12*100/E12","v":{"$error":"#DIV/0!"}},{"$nulls":4},{"$f":"I12*100/J12","v":{"$error":"#DIV/0!"}},null,null,{"$f":"L12*100/M12","v":{"$error":"#DIV/0!"}}]
[2,"господарські товариства, у статутному капіталі яких більше 50 відсотків акцій (часток) належать державі – усього, у тому числі щодо окремих підприємств:","х",null,null,{"$error":"#DIV/0!"},{"$nulls":4},{"$error":"#DIV/0!"},null,null,{"$error":"#DIV/0!"}]
["2.1. ",{"$nulls":4},{"$error":"#DIV/0!"},{"$nulls":4},{"$error":"#DIV/0!"},null,null,{"$error":"#DIV/0!"}]
[]
["1  Показник середньооблікової кількості штатних працівників розраховується наростаючим підсумком з початку року (за І квартал, перше півріччя, дев'ять місяців, рік) наступним чином:\n- для суб'єктів господарювання – шляхом підсумовування середньооблікової кількості штатних працівників (форма № 1-ПВ (місячна), рядок 1040, графа 1) за кожен місяць звітного періоду та ділення отриманої суми на кількість місяців у цьому періоді (3, 6, 9 або 12 відповідно);\n- для рядків «Усього», «державні унітарні підприємства», «господарські товариства» — наводиться загальне значення (сума) середньооблікової кількості штатних працівників усіх суб’єктів господарювання, що входять до відповідної групи."]
["2  Показник фонду оплати праці штатних працівників розраховується наростаючим підсумком з початку року (за І квартал, перше півріччя, дев'ять місяців, рік) наступним чином:\n- для суб'єктів господарювання – шляхом підсумовування фонду оплати праці штатних працівників (форма № 1-ПВ (місячна), рядок 1070, графа 1) за кожен місяць звітного періоду;\n- для рядків «Усього», «державні унітарні підприємства», «господарські товариства» — наводиться загальне значення (сума) фонду оплати праці штатних працівників усіх суб’єктів господарювання, що входять до відповідної групи."]
["3  Показник середньомісячної заробітної плати штатних працівників розраховується шляхом ділення Фонду оплати праці штатних працівників за звітний період на середньооблікову кількість штатних працівників (осіб) за цей же період та на кількість місяців у звітному періоді (3, 6, 9 або 12 відповідно) та помножено на 1000.\nДля рядків «Усього», «державні унітарні підприємства», «господарські товариства» розрахунок здійснюється на основі сумарних значень відповідних показників по групі суб’єктів господарювання."]
["4 Для розрахунку показника використовується інформація з останньої поданої звітної форми у межах відповідного періоду (станом на 1 квітня, 1 липня, 1 жовтня або 1 січня), що настає за останнім місяцем звітного періоду."]
[]
[]
["_______________________________________________________________"]

{"sheet":"27 (фін пл)","index":26,"n_rows":23,"n_cols":20,"rows_kept":23,"merged":[[1,14,1,19],[3,0,3,19],[4,0,4,19],[6,0,7,0],[6,1,7,1],[6,2,7,2],[6,3,7,3],[6,4,7,4],[6,5,6,7],[6,8,6,10],[6,11,6,13],[6,14,6,16],[6,17,6,19],[22,0,22,19]]}
[{"$nulls":14},"Додаток 27 "," "]
[{"$nulls":14},"до Методичних рекомендацій щодо здійснення контролю за виконанням функцій з управління об’єктами державної власності, узагальнення інформації про діяльність суб’єктів господарювання державного сектору економіки та наглядових рад суб’єктів господарювання державного сектору економіки та застосування критеріїв (оцінки) ефективності управління об’єктами державної власності  "]
[]
["ПОКАЗНИКИ ВИКОНАННЯ ФІНАНСОВИХ ПЛАНІВ"]
["суб'єктів господарювання державного сектору економіки, функції з управління якими або корпоративними правами держави у статутному капіталі яких виконує ____________, за ____________ (період, рік)"]
[]
["№ ","Повне найменування суб’єкта господарювання державного сектору економіки (далі – суб'єкт господарювання)","Ідентифікаційний код","Затверджено фінансовий план суб'єкта господарювання, \nтак/ні","Дата затвердження фінансового плану суб'єкта господарювання 1","Чистий дохід від реалізації продукції, тис. гривень",null,null,"Чистий фінансовий результат, \nтис. гривень",null,null,"Відрахування частини чистого прибутку до державного бюджету,\n тис. гривень",null,null,"Відрахування частини чистого прибутку на виплату дивідендів на державну частку, тис. гривень",null,null,"Капітальні інвестиції, \nтис. гривень"]
[{"$nulls":5},"план (фінансовий план, таблиця І «Інформація до фінансового плану», розділ 3 «Формування фінансових результатів», \nрядок 1000) 2","факт (звіт про виконання фінансового плану підприємства, \nрядок 1000, \nграфа 4)","відсоток виконання \n(графа 7 x 100 / графа 6)","план (фінансовий план, таблиця І «Інформація до фінансового плану», розділ 3 «Формування фінансових результатів», \nрядок 1200) 2","факт (звіт про виконання фінансового плану підприємства, рядок 1200, графа 4)","відсоток виконання \n(графа 10 x 100 / графа 9)","план (фінансовий план, таблиця ІІ «Розрахунки з бюджетом», рядок 2131) 2","факт (звіт про виконання фінансового плану підприємства, рядок 2131, \nграфа 4)","відсоток виконання \n(графа 13 x 100 / графа 12)","план (фінансовий план, таблиця ІІ «Розрахунки з бюджетом», рядок 2132) 2","факт (звіт про виконання фінансового плану підприємства, рядок 2132, \nграфа 4)","відсоток виконання \n (графа 16 x 100 / графа 15)","план (фінансовий план, таблиця ІV «Капітальні інвестиції», рядок 4000) 2","факт (звіт про виконання фінансового плану підприємства, рядок 4000,\n графа 4)","відсоток виконання \n(графа 19 x 100 / графа 18)"]
[1,{"$f":"A9+1","v":2},3,4,5,6,7,8,9,10,11,12,13,14,15,16,17,18,19,20]
[null,"Усього щодо суб'єкта управління (1 + 2), у тому числі за групами суб'єктів господарювання:","x","загальна кількість \"Так\"","x",null,null,{"$f":"G10*100/F10","v":{"$error":"#DIV/0!"}},null,null,{"$f":"J10*100/I10","v":{"$error":"#DIV/0!"}},null,null,{"$f":"M10*100/L10","v":{"$error":"#DIV/0!"}},null,null,{"$f":"P10*100/O10","v":{"$error":"#DIV/0!"}},null,null,{"$f":"S10*100/R10","v":{"$error":"#DIV/0!"}}]
[1,"державні унітарні підприємства – усього, у тому числі щодо окремих підприємств:","x","загальна кількість \"Так\"","x",null,null,{"$error":"#DIV/0!"},null,null,{"$error":"#DIV/0!"},null,null,{"$error":"#DIV/0!"},null,null,{"$error":"#DIV/0!"},null,null,{"$error":"#DIV/0!"}]
["1.1.",{"$nulls":6},{"$f":"G12*100/F12","v":{"$error":"#DIV/0!"}},null,null,{"$f":"J12*100/I12","v":{"$error":"#DIV/0!"}},null,null,{"$f":"M12*100/L12","v":{"$error":"#DIV/0!"}},null,null,{"$f":"P12*100/O12","v":{"$error":"#DIV/0!"}},null,null,{"$f":"S12*100/R12","v":{"$error":"#DIV/0!"}}]
[2,"господарські товариства, у статутному капіталі яких більше 50 відсотків акцій (часток) належать державі – усього, у тому числі щодо окремих підприємств:","x","загальна кількість \"Так\"","x",null,null,{"$error":"#DIV/0!"},null,null,{"$error":"#DIV/0!"},null,null,{"$error":"#DIV/0!"},null,null,{"$error":"#DIV/0!"},null,null,{"$error":"#DIV/0!"}]
["2.1. ",{"$nulls":6},{"$error":"#DIV/0!"},null,null,{"$error":"#DIV/0!"},null,null,{"$error":"#DIV/0!"},null,null,{"$error":"#DIV/0!"},null,null,{"$error":"#DIV/0!"}]
[]
["1 У графі 5 зазначається дата затвердження основного фінансового плану суб'єкта господарювання звітного року."]
["2 У графах 6, 9, 12, 15 і 18 дані наводяться наростаючим підсумком (тобто сума відповідних граф фінансового плану суб'єкта господарювання з І кварталу по звітний):"]
["І квартал – графа 7;"]
["перше півріччя – сума граф 7 та 8;"]
["дев'ять місяців – сума граф 7, 8 та 9;"]
["рік – графа 6."]
[]
["_______________________________________________________________"]

{"sheet":"28 (кр заб)","index":27,"n_rows":37,"n_cols":8,"rows_kept":37,"merged":[[1,5,1,7],[3,0,3,7],[4,0,4,7],[9,0,10,0],[9,1,9,7],[34,0,34,7],[36,0,36,7]]}
[{"$nulls":5},"Додаток 28 "]
[{"$nulls":5},"до Методичних рекомендацій щодо здійснення контролю за виконанням функцій з управління об’єктами державної власності, узагальнення інформації про діяльність суб’єктів господарювання державного сектору економіки та наглядових рад суб’єктів господарювання державного сектору економіки та застосування критеріїв (оцінки) ефективності управління об’єктами державної власності "]
[]
["Інформація про кредиторську заборгованість "]
["(за видами та термінами прострочення)"]
["Назва суб'єкта господарювання державного сектору економіки (далі – суб'єкт господарювання) "]
["Ідентифікаційний код"]
["Дата заповнення"]
[{"$nulls":7},"(тис. гривень)"]
["Найменування показника","Кредиторська заборгованість на кінець звітного періоду"]
[null,"усього","у тому числі прострочена","прострочена менше 30 днів","прострочена               30–90 днів","прострочена             90–180 днів","прострочена          180–360 днів","прострочена більше 360 днів"]
["Заборгованість за комунальні послуги"]
["Заборгованість із виплати заробітної плати"]
["Заборгованість зі сплати податків і зборів"]
["Заборгованість перед постачальниками, у тому числі"]
["у національній валюті"]
["в іноземній валюті 1"]
["Кредити, отримані у вітчизняних банках"]
["у національній валюті"]
["в іноземній валюті 1"]
["Кредити, отримані в іноземних банках"]
["у національній валюті"]
["в іноземній валюті 1"]
["Заборгованість за облігаціями перед резидентами"]
["у національній валюті"]
["в іноземній валюті 1"]
["Заборгованість за облігаціями перед нерезидентами"]
["у національній валюті"]
["в іноземній валюті 1"]
["Заборгованість за кредитами з бюджету"]
["Інша заборгованість"]
["Загальна сума кредиторської заборгованості 2"]
["Додаток заповнюється для кожного суб'єкта господарювання окремо."]
["1 У гривневому еквіваленті на дату складання звітності"]
["2 Загальна сума кредиторської заборгованості в графі \"усього\" повинна відповідати кредиторській заборгованості, визначеній у графі 39 додатка 24 до Методичних рекомендацій щодо здійснення контролю за виконанням функцій з управління об’єктами державної власності, узагальнення інформації про діяльність суб’єктів господарювання державного сектору економіки та наглядових рад суб’єктів господарювання державного сектору економіки та застосування критеріїв (оцінки) ефективності управління об’єктами державної власності "]
[]
["_______________________________________________________________"]

{"sheet":"29 (для ФДМУ_приватиз)","index":28,"n_rows":18,"n_cols":19,"rows_kept":18,"merged":[[1,16,1,18],[3,0,3,18],[4,0,4,18],[6,0,7,0],[6,1,7,1],[6,2,7,2],[6,3,7,3],[6,4,6,5],[6,6,7,6],[6,7,6,8],[6,9,7,9],[6,10,7,10],[6,11,7,11],[6,12,6,14],[6,15,7,15],[6,16,7,16],[6,17,7,17],[6,18,7,18],[15,0,15,18],[17,0,17,18]]}
["          ",{"$nulls":15},"Додаток 29"," "]
[{"$nulls":16},"до Методичних рекомендацій щодо здійснення контролю за виконанням функцій з управління об’єктами державної власності, узагальнення інформації про діяльність суб’єктів господарювання державного сектору економіки та наглядових рад суб’єктів господарювання державного сектору економіки та застосування критеріїв (оцінки) ефективності управління об’єктами державної власності "]
[]
[" ІНФОРМАЦІЯ"]
[" про прийняття рішення про приватизацію суб’єктів господарювання державного сектору економіки та його реалізація, за _______________ (період, рік)"]
[]
["№ з/п","Повне найменування суб'єкта господарювання державного сектору економіки (далі – суб'єкт господарювання) 1 \n","Ідентифікаційний код","Об'єкт продажу (єдиний майновий комплекс, розмір пакету акцій у статутному капіталі суб'єкта господарювання, %)","Включення об'єкта до переліку об'єктів, що підлягають приватизації ",null,"Прийняття рішення про приватизацію об’єкта (наказ, дата, №)","Передача об'єкта приватизації до органу приватизації ",null,"Зміна у процесі приватизації організаційно-правової форми об'єкта приватизації (для державних підприємств) (наказ, дата, №)","Затвердження плану розміщення акцій (для акціонерних товариств) (наказ, дата, №)","Спосіб продажу об’єкта приватизації (вид аукціону, викуп), дата проведення\n"," Продаж об’єкта приватизації",null,null,"Укладання договору купівлі-продажу (документ, дата, №), зарахування пакета акцій на рахунок у цінних паперах покупця у депозитарній установі (виписка, дата, №)","Завершення приватизації (наказ, дата, №)","Припинення приватизації  об’єкта приватизації (наказ, дата, №)","Аукціон визнано таким, що не відбувся або відсутнє рішення органу приватизації щодо викупу (підстава, документ, дата, №)"]
[{"$nulls":4},"велика приватизація (розпорядчий документ, дата, №)","мала приватизація (розпорядчий документ, дата, №)",null,"орган управління, який передав об'єкт","розпорядчий документ, акт приймання-передачі, дата, №",{"$nulls":3},"стартова ціна (балансова ціна активів)\nоб'єкта, тис. гривень (без ПДВ)","ціна продажу, тис. гривень (без ПДВ)","отримані кошти, тис. гривень (без ПДВ)"]
[1,{"$f":"A9+1","v":2},{"$f":"B9+1","v":3},4,5,6,7,8,9,10,11,12,13,14,15,16,17,18,19]
[null,"Усього щодо суб'єкта управління (1 + 2), у тому числі за групами суб'єктів господарювання:","x","x","x","x","x","x","x","x","x","x",{"$nulls":3},"x","x","x","x"]
[1,"державні унітарні підприємства – усього, у тому числі щодо окремих підприємств:","x","x","x","x","x","x","x","x","x","x",{"$nulls":3},"x","x","x","x"]
["1.1."]
["2.","господарські товариства, у статутному капіталі яких більше 50 відсотків акцій (часток) належать державі – усього, у тому числі щодо окремих підприємств:","x","x","x","x","x","x","x","x","x","x",{"$nulls":3},"x","x","x","x"]
["2.1."]
[]
["1 Наводиться повний перелік суб'єктів господарювання щодо яких прийнято рішення про приватизацію."]
[]
["_______________________________________________________________"]

{"sheet":"30 (передач)","index":29,"n_rows":17,"n_cols":10,"rows_kept":17,"merged":[[1,7,1,9],[3,0,3,9],[4,0,4,9],[16,0,16,9]]}
[{"$nulls":7},"Додаток 30 "]
[{"$nulls":7},"до Методичних рекомендацій щодо здійснення контролю за виконанням функцій з управління об’єктами державної власності, узагальнення інформації про діяльність суб’єктів господарювання державного сектору економіки та наглядових рад суб’єктів господарювання державного сектору економіки та застосування критеріїв (оцінки) ефективності управління об’єктами державної власності  "]
[]
["ІНФОРМАЦІЯ"]
["про прийняті рішення стосовно передачі до іншого суб'єкта управління об'єктами державної власності єдиних майнових комплексів або повноважень з управління корпоративними правами держави\nу статутному капіталі яких виконує ____________ за ____________ (період, рік)"]
[]
["№ ","Повне найменування суб’єкта господарювання державного сектору економіки (далі – суб'єкт господарювання) 1","Ідентифікаційний код","Об'єкт передачі (єдиний майновий комплекс /  розмір пакету акцій, що належить державі у статутному капіталі суб'єкта господарювання, %)","Повне найменування суб'єкта управління об'єктами державної власності, якому передається об'єкт передачі","Наявність згоди суб'єкта управління об'єктами державної власності на здійснення передачі об'єкта передачі від зазначеного суб'єкта управління до іншого суб'єкта управління об'єктами державної власності\n(Так/Ні)","Рішення Кабінету Міністрів України щодо передачі об'єкта передачі (розпорядчий документ, дата, №)","Дата акту приймання-передачі єдиного майнового комплексу ","Дата зарахування акцій на рахунок суб'єкта управління об'єктами державної власності, якому передані повноваження з управління корпоративними правами держави","Передано об'єкт передачі\n(Так/Ні)"]
[1,2,3,4,5,6,7,8,9,10]
[null,"Усього щодо суб'єкта управління (1 + 2), у тому числі за групами суб'єктів господарювання:","х","х","х","загальна кількість \"Так\"","х","х","х","загальна кількість \"Так\""]
["1.","державні унітарні підприємства – усього, у тому числі щодо окремих підприємств:","х","х","х","загальна кількість \"Так\"","х","х","х","загальна кількість \"Так\""]
["1.1."]
["2.","господарські товариства, у статутному капіталі яких більше 50 відсотків акцій (часток) належать державі – усього, у тому числі щодо окремих підприємств:","х","х","х","загальна кількість \"Так\"","х","х","х","загальна кількість \"Так\""]
["2.1."]
[]
["1 Наводиться повний перелік суб'єктів господарювання щодо яких прийнято рішення про передачу."]
[]
["_______________________________________________________________"]

{"sheet":"31 (упоряд)","index":30,"n_rows":16,"n_cols":27,"rows_kept":16,"merged":[[1,10,1,12],[3,0,3,12],[4,0,4,12],[6,0,7,0],[6,1,7,1],[6,2,7,2],[6,3,6,6],[6,7,6,12],[6,13,6,18],[6,19,6,22],[6,23,6,26],[15,13,15,26]]}
[{"$nulls":10},"Додаток 31  ",{"$nulls":15},"Продовження додатка 31"]
[{"$nulls":10},"до Методичних рекомендацій щодо здійснення контролю за виконанням функцій з управління об’єктами державної власності, узагальнення інформації про діяльність суб’єктів господарювання державного сектору економіки та наглядових рад суб’єктів господарювання державного сектору економіки та застосування критеріїв (оцінки) ефективності управління об’єктами державної власності  "]
[]
["ІНФОРМАЦІЯ"]
["про стан виконання завдань з упорядкування об'єктів державної власності ____________ за ____________ (період, рік)"]
[]
["№ ","Повне найменування суб'єкта господарювання державного сектору економіки (далі – суб'єкт господарювання) \n","Ідентифікаційний код","Реструктуризація",{"$nulls":3},"Реорганізація",{"$nulls":5},"Ліквідація",{"$nulls":5},"Передача на приватизацію",{"$nulls":3},"Інші завдання"]
[{"$nulls":3},"Наявність завдань (Так/Ні)","Назва, номер та дата нормативно-правового акту або внутрішнього документу, що визначає завдання","Виконано (Так/Ні)","Назва, номер та дата нормативно-правового акту або внутрішнього документу, що підтверджує виконання завдання","Наявність завдань (Так/Ні)","Назва, номер та дата нормативно-правового акту або внутрішнього документу, що визначає завдання","Виконано (Так/Ні)","Номер та дата наказу про припинення діяльності ","Термін припинення діяльності","Дата внесення запису щодо припинення діяльності","Наявність завдань (Так/Ні)","Назва, номер та дата нормативно-правового акту або внутрішнього документу, що визначає завдання","Виконано (Так/Ні)","Номер та дата наказу про припинення діяльності","Термін припинення діяльності","Дата внесення запису щодо припинення діяльності","Наявність завдань (Так/Ні)","Назва, номер та дата нормативно-правового акту або внутрішнього документу, що визначає завдання","Виконано (Так/Ні)","Назва, номер та дата нормативно-правового акту або внутрішнього документу, що підтверджує передачу на приватизацію","Наявність завдань (Так/Ні)","Назва, номер та дата нормативно-правового акту або внутрішнього документу, що визначає завдання","Виконано (Так/Ні)","Назва, номер та дата нормативно-правового акту або внутрішнього документу, що підтверджує виконання завдання"]
[1,{"$f":"A9+1","v":2},{"$f":"B9+1","v":3},4,5,6,7,8,9,10,11,12,13,14,15,16,17,18,19,20,21,22,23,24,25,26,27]
[null,"Усього щодо суб'єкта управління (1 + 2), у тому числі за групами суб'єктів господарювання:","х","загальна кількість \"Так\"","х","загальна кількість \"Так\"","х","загальна кількість \"Так\"","х","загальна кількість \"Так\"","х","х","х","загальна кількість \"Так\"","х","загальна кількість \"Так\"","х","х","х","загальна кількість \"Так\"","х","загальна кількість \"Так\"","х","загальна кількість \"Так\"","х","загальна кількість \"Так\"","х"]
["1.","державні унітарні підприємства – усього, у тому числі щодо окремих підприємств:","х","загальна кількість \"Так\"","х","загальна кількість \"Так\"","х","загальна кількість \"Так\"","х","загальна кількість \"Так\"","х","х","х","загальна кількість \"Так\"","х","загальна кількість \"Так\"","х","х","х","загальна кількість \"Так\"","х","загальна кількість \"Так\"","х","загальна кількість \"Так\"","х","загальна кількість \"Так\"","х"]
["1.1."]
["2.","господарські товариства, у статутному капіталі яких більше 50 відсотків акцій (часток) належать державі – усього, у тому числі щодо окремих підприємств:","х","загальна кількість \"Так\"","х","загальна кількість \"Так\"","х","загальна кількість \"Так\"","х","загальна кількість \"Так\"","х","х","х","загальна кількість \"Так\"","х","загальна кількість \"Так\"","х","х","х","загальна кількість \"Так\"","х","загальна кількість \"Так\"","х","загальна кількість \"Так\"","х","загальна кількість \"Так\"","х"]
["2.1."]
[]
[{"$nulls":13},"_______________________________________________________________"]

{"sheet":"32 (оцінка)","index":31,"n_rows":14,"n_cols":15,"rows_kept":14,"merged":[[1,12,1,14],[3,0,3,14],[4,0,4,14],[6,0,8,0],[6,1,8,1],[6,2,6,6],[6,7,8,7],[6,8,8,8],[6,9,8,9],[6,10,8,10],[6,11,8,11],[6,12,8,12],[6,13,8,13],[6,14,8,14],[7,2,8,2],[7,3,7,6],[13,0,13,14]]}
[{"$nulls":12},"Додаток 32 "]
[{"$nulls":12},"до Методичних рекомендацій щодо здійснення контролю за виконанням функцій з управління об’єктами державної власності, узагальнення інформації про діяльність суб’єктів господарювання державного сектору економіки та наглядових рад суб’єктів господарювання державного сектору економіки та застосування критеріїв (оцінки) ефективності управління об’єктами державної власності "]
[]
["ІНФОРМАЦІЯ"]
["про результати проведення єдиного моніторингу ефективності управління об'єктами державної власності за __________ (рік)"]
[]
["№ ","Найменування суб'єкта управління об'єктами державної власності","Кількість суб'єктів господарювання державного сектору економіки, функції з управління якими або корпоративними правами держави у статутному капіталі яких виконує суб'єкт управління",{"$nulls":4},"Чистий прибуток (збиток), \nтис. гривень","Дебіторська заборгованість, тис. гривень","Кредиторська заборгованість, тис. гривень","Загальна вартість активів, тис. гривень","Середньооблікова кількість штатних працівників, осіб","Середньомісячна заробітна плата, гривень","Сума заборгованості з виплати заробітної плати, тис. гривень","Оцінка ефективності управління"]
[null,null,"усього","з них:"]
[{"$nulls":3},"працюючі","прибуткові - з числа працюючих","непрацюючі","інформація відсутня"]
[1,2,3,4,5,6,7,8,9,10,11,12,13,14,15]
[null,"Усього по Україні",{"$f":"D11+F11+G11","v":0},{"$nulls":11},"х"]
[1,null,{"$f":"D12+F12+G12","v":0}]
[]
["_______________________________________________________________"]